Organisation Name,Organisation Code,Organisational Unit,Service Category Label,Procurement Category,Supplier Name,Supplier Other ID,Payment Date,Transaction Number,Amount (�),Purpose
Eden District Council,http://opendatacommunities.org/id/district-council/eden,Legal Services Manager,Legal Services,Agency Staff,VENN GROUP LIMITED,VEN003,04/12/2020,184830,1238.28,TIME SHEET W/E 08.11.20
Eden District Council,http://opendatacommunities.org/id/district-council/eden,Technical Services Manager,Public Conveniences,Commuted Sum,AMEY PLC,TFE001,04/12/2020,184903,13788.18,REDUNDANCY LAKES CLEANING
Eden District Council,http://opendatacommunities.org/id/district-council/eden,Environmental Services,1996 Mandatory Renovation Grants,Capital grants,HANDICARE ACCESSIBILITY LTD,FRE002,04/12/2020,184915,4260,GRANT REF 190051 FIN PAYMENT
Eden District Council,http://opendatacommunities.org/id/district-council/eden,Legal Services Manager,Legal Services,Agency Staff,VENN GROUP LIMITED,VEN003,04/12/2020,184943,1226.14,TIME SHEET W/E 15.11.20
Eden District Council,http://opendatacommunities.org/id/district-council/eden,Commercial Services Manager,Tourism Promotion,Marketing,BUCKET  & SPADE MEDIA LTD,BUC010,04/12/2020,184636,7600,1st payment 2021 vist eden guide
Eden District Council,http://opendatacommunities.org/id/district-council/eden,Transformation & Customers Head of,Emergency Planning and Works,Advertising,BARRNON MEDIA LTD,CUM001,04/12/2020,184908,500,ROP COVID 07.11.20
Eden District Council,http://opendatacommunities.org/id/district-council/eden,Transformation & Customers Head of,Emergency Planning and Works,Advertising,BARRNON MEDIA LTD,CUM001,04/12/2020,184955,500,COVID AD 14.11.20
Eden District Council,http://opendatacommunities.org/id/district-council/eden,Technical Services Manager,Administrative Buildings,Electricity,NPOWER LTD,NPO001,04/12/2020,185698,612.53,MANSION HOUSE
Eden District Council,http://opendatacommunities.org/id/district-council/eden,Technical Services Manager,Administrative Buildings,Maint of Water Coolers,WATERLOGIC GB LTD,ANG007,04/12/2020,185721,530,28.07.17 MAINTENANCE PACKAGES
Eden District Council,http://opendatacommunities.org/id/district-council/eden,Technical Services Manager,Administrative Buildings,Maint of Water Coolers,WATERLOGIC GB LTD,ANG007,04/12/2020,185724,583.02,MAINTENANCE PACKAGES
Eden District Council,http://opendatacommunities.org/id/district-council/eden,Technical Services Manager,Administrative Buildings,Maint of Water Coolers,WATERLOGIC GB LTD,ANG007,04/12/2020,185727,-597.82,CREDIT RE MAINTENANCE / ENV LEVYS
Eden District Council,http://opendatacommunities.org/id/district-council/eden,Environmental Services,Other Environmental Health,Professional fees,UNITED UTILITIES WATER PLC,UNI024,04/12/2020,184629,741.59,INCOME LABS SEPT20
Eden District Council,http://opendatacommunities.org/id/district-council/eden,Commercial Services Manager,Economic Development and Promotion,Professional fees,WALTON GOODLAND LTD,WAL008,04/12/2020,184738,2646,SURVEYOR OCT 20
Eden District Council,http://opendatacommunities.org/id/district-council/eden,Community Service Assistant Director,Holding Accounts,Grants and contributions,ROYAL MAIL NW,ROY001,04/12/2020,184798,1723.59,1ST AND 2ND CLASS MAIL
Eden District Council,http://opendatacommunities.org/id/district-council/eden,Environmental Services,Pest Control,Pest Control,RENTOKIL INITIAL PEST CONTROL,REN009,04/12/2020,184813,957.61,PEST MISC DEC20
Eden District Council,http://opendatacommunities.org/id/district-council/eden,Technical Services Manager,Refuse Collection,Contract refuse collection,AMEY PLC,TFE001,04/12/2020,184913,74470.35,CERT M-RC104
Eden District Council,http://opendatacommunities.org/id/district-council/eden,Environmental Services,Community Wardens,Dog Contract O.O.H retainer,AMEY PLC,TFE001,04/12/2020,184926,970.24,KENNELLING NOV 20
Eden District Council,http://opendatacommunities.org/id/district-council/eden,Technical Services Manager,Public Conveniences,Water charges � unmetered,WATER PLUS,UNI008,04/12/2020,185080,793.15,PCS BROAD CLOSE APPLEBY
Eden District Council,http://opendatacommunities.org/id/district-council/eden,Technical Services Manager,Public Conveniences,Commuted Sum,PATTERDALE PARISH COUNCIL,PAT002,04/12/2020,185082,4320,toilet entry system jenkins field
Eden District Council,http://opendatacommunities.org/id/district-council/eden,Financial Services Manager,Emergency Planning and Works,Grants and contributions,Happy Paws Grooming by Victoria,42001236,02/12/2020,186125,1334,COVID 19 SMALL BUSINESS GRANT
Eden District Council,http://opendatacommunities.org/id/district-council/eden,Financial Services Manager,Emergency Planning and Works,Grants and contributions,THE RATE PAYER,42001249,02/12/2020,186126,1334,COVID 19 SMALL BUSINESS GRANT
Eden District Council,http://opendatacommunities.org/id/district-council/eden,Financial Services Manager,Emergency Planning and Works,Grants and contributions,Greenbank Farm B&B,42001223,02/12/2020,186127,1334,COVID 19 SMALL BUSINESS GRANT
Eden District Council,http://opendatacommunities.org/id/district-council/eden,Financial Services Manager,Emergency Planning and Works,Grants and contributions,Lakeland llama treks Ltd,42001212,02/12/2020,186128,1334,COVID 19 SMALL BUSINESS GRANT
Eden District Council,http://opendatacommunities.org/id/district-council/eden,Financial Services Manager,Emergency Planning and Works,Grants and contributions,The Adventure Element Ltd,40242642,02/12/2020,186129,1334,COVID 19 SMALL BUSINESS GRANT
Eden District Council,http://opendatacommunities.org/id/district-council/eden,Financial Services Manager,Emergency Planning and Works,Grants and contributions,Ullswater wake and surf,42001260,02/12/2020,186130,1334,COVID 19 SMALL BUSINESS GRANT
Eden District Council,http://opendatacommunities.org/id/district-council/eden,Financial Services Manager,Emergency Planning and Works,Grants and contributions,Fitness in the Lakes,42001214,02/12/2020,186131,1334,COVID 19 SMALL BUSINESS GRANT
Eden District Council,http://opendatacommunities.org/id/district-council/eden,Financial Services Manager,Emergency Planning and Works,Grants and contributions,Roly�s Taxi,42001243,02/12/2020,186132,1334,COVID 19 SMALL BUSINESS GRANT
Eden District Council,http://opendatacommunities.org/id/district-council/eden,Financial Services Manager,Emergency Planning and Works,Grants and contributions,Wild Extreme,40238322,02/12/2020,186133,1334,COVID 19 SMALL BUSINESS GRANT
Eden District Council,http://opendatacommunities.org/id/district-council/eden,Financial Services Manager,Emergency Planning and Works,Grants and contributions,THE RATE PAYER,42001216,02/12/2020,186134,1334,COVID 19 SMALL BUSINESS GRANT
Eden District Council,http://opendatacommunities.org/id/district-council/eden,Financial Services Manager,Emergency Planning and Works,Grants and contributions,Ace Fixings (Cumbria) Ltd,40220543,02/12/2020,186135,2000,COVID 19 SMALL BUSINESS GRANT
Eden District Council,http://opendatacommunities.org/id/district-council/eden,Financial Services Manager,Emergency Planning and Works,Grants and contributions,THE RATE PAYER,42001224,02/12/2020,186136,1334,COVID 19 SMALL BUSINESS GRANT
Eden District Council,http://opendatacommunities.org/id/district-council/eden,Financial Services Manager,Emergency Planning and Works,Grants and contributions,THE RATE PAYER,42001251,02/12/2020,186137,1334,COVID 19 SMALL BUSINESS GRANT
Eden District Council,http://opendatacommunities.org/id/district-council/eden,Financial Services Manager,Emergency Planning and Works,Grants and contributions,THE RATE PAYER,42001237,02/12/2020,186138,1334,COVID 19 SMALL BUSINESS GRANT
Eden District Council,http://opendatacommunities.org/id/district-council/eden,Financial Services Manager,Emergency Planning and Works,Grants and contributions,Cumbria Football Academy,42001257,02/12/2020,186139,2000,COVID 19 SMALL BUSINESS GRANT
Eden District Council,http://opendatacommunities.org/id/district-council/eden,Financial Services Manager,Emergency Planning and Works,Grants and contributions,Low Hall Bed and Breakfast,42001211,02/12/2020,186140,1334,COVID 19 SMALL BUSINESS GRANT
Eden District Council,http://opendatacommunities.org/id/district-council/eden,Financial Services Manager,Emergency Planning and Works,Grants and contributions,Fit2Work Ltd,42001217,02/12/2020,186141,1334,COVID 19 SMALL BUSINESS GRANT
Eden District Council,http://opendatacommunities.org/id/district-council/eden,Financial Services Manager,Emergency Planning and Works,Grants and contributions,Lowther Mini Market Limited,42001253,02/12/2020,186142,1334,COVID 19 SMALL BUSINESS GRANT
Eden District Council,http://opendatacommunities.org/id/district-council/eden,Financial Services Manager,Emergency Planning and Works,Grants and contributions,All Weather Leisure Ltd,42001252,02/12/2020,186143,1334,COVID 19 SMALL BUSINESS GRANT
Eden District Council,http://opendatacommunities.org/id/district-council/eden,Financial Services Manager,Emergency Planning and Works,Grants and contributions,oil solutions ltd,40176349,02/12/2020,186144,1334,COVID 19 SMALL BUSINESS GRANT
Eden District Council,http://opendatacommunities.org/id/district-council/eden,Financial Services Manager,Emergency Planning and Works,Grants and contributions,GLAM Beauty & Nails,42001209,02/12/2020,186145,1334,COVID 19 SMALL BUSINESS GRANT
Eden District Council,http://opendatacommunities.org/id/district-council/eden,Financial Services Manager,Emergency Planning and Works,Grants and contributions,THE RATE PAYER,42001226,02/12/2020,186146,1334,COVID 19 SMALL BUSINESS GRANT
Eden District Council,http://opendatacommunities.org/id/district-council/eden,Financial Services Manager,Emergency Planning and Works,Grants and contributions,THE RATE PAYER,42001219,02/12/2020,186147,1334,COVID 19 SMALL BUSINESS GRANT
Eden District Council,http://opendatacommunities.org/id/district-council/eden,Financial Services Manager,Emergency Planning and Works,Grants and contributions,THE RATE PAYER,42001239,02/12/2020,186148,1334,COVID 19 SMALL BUSINESS GRANT
Eden District Council,http://opendatacommunities.org/id/district-council/eden,Financial Services Manager,Emergency Planning and Works,Grants and contributions,Robyns beauty,42001210,02/12/2020,186149,1334,COVID 19 SMALL BUSINESS GRANT
Eden District Council,http://opendatacommunities.org/id/district-council/eden,Financial Services Manager,Emergency Planning and Works,Grants and contributions,A2B SkyCabs,42001244,02/12/2020,186150,1334,COVID 19 SMALL BUSINESS GRANT
Eden District Council,http://opendatacommunities.org/id/district-council/eden,Financial Services Manager,Emergency Planning and Works,Grants and contributions,Bluebell Taxis (Penrith),42001221,02/12/2020,186151,1334,COVID 19 SMALL BUSINESS GRANT
Eden District Council,http://opendatacommunities.org/id/district-council/eden,Financial Services Manager,Emergency Planning and Works,Grants and contributions,THE RATE PAYER,42001227,02/12/2020,186152,1334,COVID 19 SMALL BUSINESS GRANT
Eden District Council,http://opendatacommunities.org/id/district-council/eden,Financial Services Manager,Emergency Planning and Works,Grants and contributions,Showmecumbria Tours & Transfers Private Hire operator,42001258,02/12/2020,186153,1334,COVID 19 SMALL BUSINESS GRANT
Eden District Council,http://opendatacommunities.org/id/district-council/eden,Financial Services Manager,Emergency Planning and Works,Grants and contributions,Jackies taxis,42001228,02/12/2020,186154,1334,COVID 19 SMALL BUSINESS GRANT
Eden District Council,http://opendatacommunities.org/id/district-council/eden,Financial Services Manager,Emergency Planning and Works,Grants and contributions,THE RATE PAYER,42001250,02/12/2020,186155,1334,COVID 19 SMALL BUSINESS GRANT
Eden District Council,http://opendatacommunities.org/id/district-council/eden,Financial Services Manager,Emergency Planning and Works,Grants and contributions,Heather�s Cleaning Service,42001248,02/12/2020,186156,1334,COVID 19 SMALL BUSINESS GRANT
Eden District Council,http://opendatacommunities.org/id/district-council/eden,Financial Services Manager,Emergency Planning and Works,Grants and contributions, Eden Taxis,42001233,02/12/2020,186157,1334,COVID 19 SMALL BUSINESS GRANT
Eden District Council,http://opendatacommunities.org/id/district-council/eden,Financial Services Manager,Emergency Planning and Works,Grants and contributions,Precision Beauty,42001234,02/12/2020,186158,1334,COVID 19 SMALL BUSINESS GRANT
Eden District Council,http://opendatacommunities.org/id/district-council/eden,Financial Services Manager,Emergency Planning and Works,Grants and contributions,jackson family butchers limited,40231734,02/12/2020,186159,1334,COVID 19 SMALL BUSINESS GRANT
Eden District Council,http://opendatacommunities.org/id/district-council/eden,Financial Services Manager,Emergency Planning and Works,Grants and contributions,THE RATE PAYER,42001220,02/12/2020,186160,1334,COVID 19 SMALL BUSINESS GRANT
Eden District Council,http://opendatacommunities.org/id/district-council/eden,Financial Services Manager,Emergency Planning and Works,Grants and contributions,THE RATE PAYER,42001245,02/12/2020,186161,1334,COVID 19 SMALL BUSINESS GRANT
Eden District Council,http://opendatacommunities.org/id/district-council/eden,Financial Services Manager,Emergency Planning and Works,Grants and contributions,DLH TAXIS,42001222,02/12/2020,186162,1334,COVID 19 SMALL BUSINESS GRANT
Eden District Council,http://opendatacommunities.org/id/district-council/eden,Financial Services Manager,Emergency Planning and Works,Grants and contributions,DLH Taxis,42001240,02/12/2020,186163,1334,COVID 19 SMALL BUSINESS GRANT
Eden District Council,http://opendatacommunities.org/id/district-council/eden,Financial Services Manager,Emergency Planning and Works,Grants and contributions,THE RATE PAYER,42001235,02/12/2020,186164,1334,COVID 19 SMALL BUSINESS GRANT
Eden District Council,http://opendatacommunities.org/id/district-council/eden,Financial Services Manager,Emergency Planning and Works,Grants and contributions,THE RATE PAYER,42001230,02/12/2020,186165,1334,COVID 19 SMALL BUSINESS GRANT
Eden District Council,http://opendatacommunities.org/id/district-council/eden,Financial Services Manager,Emergency Planning and Works,Grants and contributions,philip askins hair,42001232,02/12/2020,186166,1334,COVID 19 SMALL BUSINESS GRANT
Eden District Council,http://opendatacommunities.org/id/district-council/eden,Financial Services Manager,Emergency Planning and Works,Grants and contributions,Talons & Tans,42001254,02/12/2020,186167,1334,COVID 19 SMALL BUSINESS GRANT
Eden District Council,http://opendatacommunities.org/id/district-council/eden,Financial Services Manager,Emergency Planning and Works,Grants and contributions,THE RATE PAYER,42001229,02/12/2020,186168,1334,COVID 19 SMALL BUSINESS GRANT
Eden District Council,http://opendatacommunities.org/id/district-council/eden,Financial Services Manager,Emergency Planning and Works,Grants and contributions,Robyn Beaumont Hair,42001246,02/12/2020,186169,1334,COVID 19 SMALL BUSINESS GRANT
Eden District Council,http://opendatacommunities.org/id/district-council/eden,Financial Services Manager,Emergency Planning and Works,Grants and contributions,Penrith Taxis,42001255,02/12/2020,186170,1334,COVID 19 SMALL BUSINESS GRANT
Eden District Council,http://opendatacommunities.org/id/district-council/eden,Financial Services Manager,Emergency Planning and Works,Grants and contributions,Sharon taxis,42001238,02/12/2020,186171,1334,COVID 19 SMALL BUSINESS GRANT
Eden District Council,http://opendatacommunities.org/id/district-council/eden,Financial Services Manager,Emergency Planning and Works,Grants and contributions,Timeless Beauty with Beth,42001218,02/12/2020,186172,1334,COVID 19 SMALL BUSINESS GRANT
Eden District Council,http://opendatacommunities.org/id/district-council/eden,Financial Services Manager,Emergency Planning and Works,Grants and contributions,THE RATE PAYER,42001242,02/12/2020,186173,1334,COVID 19 SMALL BUSINESS GRANT
Eden District Council,http://opendatacommunities.org/id/district-council/eden,Financial Services Manager,Emergency Planning and Works,Grants and contributions,Eden Waggy Wanderers,42001225,02/12/2020,186174,1334,COVID 19 SMALL BUSINESS GRANT
Eden District Council,http://opendatacommunities.org/id/district-council/eden,Financial Services Manager,Emergency Planning and Works,Grants and contributions,The Water Mill,40213941,02/12/2020,186175,1334,COVID 19 SMALL BUSINESS GRANT
Eden District Council,http://opendatacommunities.org/id/district-council/eden,Financial Services Manager,Emergency Planning and Works,Grants and contributions,THE RATE PAYER,42001231,02/12/2020,186176,1334,COVID 19 SMALL BUSINESS GRANT
Eden District Council,http://opendatacommunities.org/id/district-council/eden,Financial Services Manager,Emergency Planning and Works,Grants and contributions,B & D Taxis,40173111,02/12/2020,186177,1334,COVID 19 SMALL BUSINESS GRANT
Eden District Council,http://opendatacommunities.org/id/district-council/eden,Financial Services Manager,Emergency Planning and Works,Grants and contributions,THE RATE PAYER,42001259,02/12/2020,186178,1334,COVID 19 SMALL BUSINESS GRANT
Eden District Council,http://opendatacommunities.org/id/district-council/eden,Financial Services Manager,Emergency Planning and Works,Grants and contributions,Ed Clark Sports Therapy,42001247,02/12/2020,186179,1334,COVID 19 SMALL BUSINESS GRANT
Eden District Council,http://opendatacommunities.org/id/district-council/eden,Financial Services Manager,Emergency Planning and Works,Grants and contributions,Ron�s Taxi,42001241,02/12/2020,186180,1334,COVID 19 SMALL BUSINESS GRANT
Eden District Council,http://opendatacommunities.org/id/district-council/eden,Financial Services Manager,Emergency Planning and Works,Grants and contributions,Blencathra Garage   ,40246255,02/12/2020,186181,1334,COVID 19 SMALL BUSINESS GRANT
Eden District Council,http://opendatacommunities.org/id/district-council/eden,Financial Services Manager,Emergency Planning and Works,Grants and contributions,Sculpt Personal Training,42001213,02/12/2020,186182,1334,COVID 19 SMALL BUSINESS GRANT
Eden District Council,http://opendatacommunities.org/id/district-council/eden,Financial Services Manager,Emergency Planning and Works,Grants and contributions,North Lakes Physiotherapy,42001215,02/12/2020,186183,1334,COVID 19 SMALL BUSINESS GRANT
Eden District Council,http://opendatacommunities.org/id/district-council/eden,Financial Services Manager,Emergency Planning and Works,Grants and contributions,SUBWAY,42001256,02/12/2020,186184,1334,COVID 19 SMALL BUSINESS GRANT
Eden District Council,http://opendatacommunities.org/id/district-council/eden,Financial Services Manager,Emergency Planning and Works,Grants and contributions,Spindles of Penrith Ltd,40222846,02/12/2020,186185,1334,COVID 19 SMALL BUSINESS GRANT
Eden District Council,http://opendatacommunities.org/id/district-council/eden,Financial Services Manager,Emergency Planning and Works,Grants and contributions,Byre cottage,40232669,02/12/2020,186186,1334,COVID 19 SMALL BUSINESS GRANT
Eden District Council,http://opendatacommunities.org/id/district-council/eden,Financial Services Manager,Emergency Planning and Works,Grants and contributions,THE RATE PAYER,40206592,02/12/2020,186187,1334,COVID 19 SMALL BUSINESS GRANT
Eden District Council,http://opendatacommunities.org/id/district-council/eden,Financial Services Manager,Emergency Planning and Works,Grants and contributions,GESTS LIMITED,40229298,02/12/2020,186188,1334,COVID 19 SMALL BUSINESS GRANT
Eden District Council,http://opendatacommunities.org/id/district-council/eden,Financial Services Manager,Emergency Planning and Works,Grants and contributions,THE RATE PAYER,40235125,02/12/2020,186189,1334,COVID 19 SMALL BUSINESS GRANT
Eden District Council,http://opendatacommunities.org/id/district-council/eden,Financial Services Manager,Emergency Planning and Works,Grants and contributions,Lowther Cottage,40248916,02/12/2020,186190,1334,COVID 19 SMALL BUSINESS GRANT
Eden District Council,http://opendatacommunities.org/id/district-council/eden,Financial Services Manager,Emergency Planning and Works,Grants and contributions,glendowlin lodges,40224590,02/12/2020,186191,1334,COVID 19 SMALL BUSINESS GRANT
Eden District Council,http://opendatacommunities.org/id/district-council/eden,Financial Services Manager,Emergency Planning and Works,Grants and contributions,THE RATE PAYER,40102379,02/12/2020,186192,1334,COVID 19 SMALL BUSINESS GRANT
Eden District Council,http://opendatacommunities.org/id/district-council/eden,Financial Services Manager,Emergency Planning and Works,Grants and contributions,THE RATE PAYER,40249407,02/12/2020,186193,1334,COVID 19 SMALL BUSINESS GRANT
Eden District Council,http://opendatacommunities.org/id/district-council/eden,Financial Services Manager,Emergency Planning and Works,Grants and contributions,THE RATE PAYER,40245948,02/12/2020,186194,1334,COVID 19 SMALL BUSINESS GRANT
Eden District Council,http://opendatacommunities.org/id/district-council/eden,Financial Services Manager,Emergency Planning and Works,Grants and contributions,Stone Cottage,40165530,02/12/2020,186195,1334,COVID 19 SMALL BUSINESS GRANT
Eden District Council,http://opendatacommunities.org/id/district-council/eden,Financial Services Manager,Emergency Planning and Works,Grants and contributions,Hart Barn,40232379,02/12/2020,186196,1334,COVID 19 SMALL BUSINESS GRANT
Eden District Council,http://opendatacommunities.org/id/district-council/eden,Financial Services Manager,Emergency Planning and Works,Grants and contributions,THE RATE PAYER,40099404,02/12/2020,186197,1334,COVID 19 SMALL BUSINESS GRANT
Eden District Council,http://opendatacommunities.org/id/district-council/eden,Financial Services Manager,Emergency Planning and Works,Grants and contributions,Robyn�s Barn,40248237,02/12/2020,186198,1334,COVID 19 SMALL BUSINESS GRANT
Eden District Council,http://opendatacommunities.org/id/district-council/eden,Financial Services Manager,Emergency Planning and Works,Grants and contributions,Morgan Curtain Design Ltd,40184838,02/12/2020,186199,1334,COVID 19 SMALL BUSINESS GRANT
Eden District Council,http://opendatacommunities.org/id/district-council/eden,Financial Services Manager,Emergency Planning and Works,Grants and contributions,THE RATE PAYER,40209577,02/12/2020,186200,1334,COVID 19 SMALL BUSINESS GRANT
Eden District Council,http://opendatacommunities.org/id/district-council/eden,Financial Services Manager,Emergency Planning and Works,Grants and contributions,THE RATE PAYER,40215046,02/12/2020,186201,1334,COVID 19 SMALL BUSINESS GRANT
Eden District Council,http://opendatacommunities.org/id/district-council/eden,Financial Services Manager,Emergency Planning and Works,Grants and contributions,THE RATE PAYER,40167604,02/12/2020,186202,1334,COVID 19 SMALL BUSINESS GRANT
Eden District Council,http://opendatacommunities.org/id/district-council/eden,Financial Services Manager,Emergency Planning and Works,Grants and contributions,Settle & Carlisle Railway Properties LimSe,40200037,02/12/2020,186203,1334,COVID 19 SMALL BUSINESS GRANT
Eden District Council,http://opendatacommunities.org/id/district-council/eden,Financial Services Manager,Emergency Planning and Works,Grants and contributions,Sandbed Cottage,40247760,02/12/2020,186204,1334,COVID 19 SMALL BUSINESS GRANT
Eden District Council,http://opendatacommunities.org/id/district-council/eden,Financial Services Manager,Emergency Planning and Works,Grants and contributions,THE RATE PAYER,40192228,02/12/2020,186205,1334,COVID 19 SMALL BUSINESS GRANT
Eden District Council,http://opendatacommunities.org/id/district-council/eden,Financial Services Manager,Emergency Planning and Works,Grants and contributions,THE RATE PAYER,40209768,02/12/2020,186206,1334,COVID 19 SMALL BUSINESS GRANT
Eden District Council,http://opendatacommunities.org/id/district-council/eden,Financial Services Manager,Emergency Planning and Works,Grants and contributions,Lord Mayors Barn,40200594,02/12/2020,186207,1334,COVID 19 SMALL BUSINESS GRANT
Eden District Council,http://opendatacommunities.org/id/district-council/eden,Financial Services Manager,Emergency Planning and Works,Grants and contributions,THE RATE PAYER,40156390,02/12/2020,186208,1334,COVID 19 SMALL BUSINESS GRANT
Eden District Council,http://opendatacommunities.org/id/district-council/eden,Financial Services Manager,Emergency Planning and Works,Grants and contributions,Old Oddfellows Hall,40231178,02/12/2020,186209,1334,COVID 19 SMALL BUSINESS GRANT
Eden District Council,http://opendatacommunities.org/id/district-council/eden,Financial Services Manager,Emergency Planning and Works,Grants and contributions,THE RATE PAYER,40191331,02/12/2020,186210,1334,COVID 19 SMALL BUSINESS GRANT
Eden District Council,http://opendatacommunities.org/id/district-council/eden,Financial Services Manager,Emergency Planning and Works,Grants and contributions,Rose Barn,40247593,02/12/2020,186211,1334,COVID 19 SMALL BUSINESS GRANT
Eden District Council,http://opendatacommunities.org/id/district-council/eden,Financial Services Manager,Emergency Planning and Works,Grants and contributions,THE RATE PAYER,40210300,02/12/2020,186212,1334,COVID 19 SMALL BUSINESS GRANT
Eden District Council,http://opendatacommunities.org/id/district-council/eden,Financial Services Manager,Emergency Planning and Works,Grants and contributions,Stybarrow Cottage,40246576,02/12/2020,186213,1334,COVID 19 SMALL BUSINESS GRANT
Eden District Council,http://opendatacommunities.org/id/district-council/eden,Financial Services Manager,Emergency Planning and Works,Grants and contributions,THE RATE PAYER,40167611,02/12/2020,186214,1334,COVID 19 SMALL BUSINESS GRANT
Eden District Council,http://opendatacommunities.org/id/district-council/eden,Financial Services Manager,Emergency Planning and Works,Grants and contributions,The Arches Carpet Centre,40207083,02/12/2020,186215,2000,COVID 19 SMALL BUSINESS GRANT
Eden District Council,http://opendatacommunities.org/id/district-council/eden,Financial Services Manager,Emergency Planning and Works,Grants and contributions,THE RATE PAYER,40218618,02/12/2020,186216,1334,COVID 19 SMALL BUSINESS GRANT
Eden District Council,http://opendatacommunities.org/id/district-council/eden,Financial Services Manager,Emergency Planning and Works,Grants and contributions,THE RATE PAYER,40221744,02/12/2020,186217,1334,COVID 19 SMALL BUSINESS GRANT
Eden District Council,http://opendatacommunities.org/id/district-council/eden,Financial Services Manager,Emergency Planning and Works,Grants and contributions,Swinsty,40189000,02/12/2020,186218,1334,COVID 19 SMALL BUSINESS GRANT
Eden District Council,http://opendatacommunities.org/id/district-council/eden,Financial Services Manager,Emergency Planning and Works,Grants and contributions,Self catering holiday unit and premises,40225661,02/12/2020,186219,1334,COVID 19 SMALL BUSINESS GRANT
Eden District Council,http://opendatacommunities.org/id/district-council/eden,Financial Services Manager,Emergency Planning and Works,Grants and contributions,Gentlemans,40228660,02/12/2020,186220,1334,COVID 19 SMALL BUSINESS GRANT
Eden District Council,http://opendatacommunities.org/id/district-council/eden,Financial Services Manager,Emergency Planning and Works,Grants and contributions,THE RATE PAYER,40243485,02/12/2020,186221,1334,COVID 19 SMALL BUSINESS GRANT
Eden District Council,http://opendatacommunities.org/id/district-council/eden,Financial Services Manager,Emergency Planning and Works,Grants and contributions,VP TECH BUSINESS LTD,40213019,02/12/2020,186222,1334,COVID 19 SMALL BUSINESS GRANT
Eden District Council,http://opendatacommunities.org/id/district-council/eden,Financial Services Manager,Emergency Planning and Works,Grants and contributions,Thuy Nguyen,40250353,02/12/2020,186223,1334,COVID 19 SMALL BUSINESS GRANT
Eden District Council,http://opendatacommunities.org/id/district-council/eden,Financial Services Manager,Emergency Planning and Works,Grants and contributions,THE RATE PAYER,40236562,02/12/2020,186224,1334,COVID 19 SMALL BUSINESS GRANT
Eden District Council,http://opendatacommunities.org/id/district-council/eden,Financial Services Manager,Emergency Planning and Works,Grants and contributions,THE RATE PAYER,40155670,02/12/2020,186225,1334,COVID 19 SMALL BUSINESS GRANT
Eden District Council,http://opendatacommunities.org/id/district-council/eden,Financial Services Manager,Emergency Planning and Works,Grants and contributions,THE RATE PAYER,40250377,02/12/2020,186226,1334,COVID 19 SMALL BUSINESS GRANT
Eden District Council,http://opendatacommunities.org/id/district-council/eden,Financial Services Manager,Emergency Planning and Works,Grants and contributions,Mays Beauty Salon Ltd,40217141,02/12/2020,186227,1334,COVID 19 SMALL BUSINESS GRANT
Eden District Council,http://opendatacommunities.org/id/district-council/eden,Financial Services Manager,Emergency Planning and Works,Grants and contributions,Flower World,40246613,02/12/2020,186228,1334,COVID 19 SMALL BUSINESS GRANT
Eden District Council,http://opendatacommunities.org/id/district-council/eden,Financial Services Manager,Emergency Planning and Works,Grants and contributions,The Mulberry Bush,40174848,02/12/2020,186229,1334,COVID 19 SMALL BUSINESS GRANT
Eden District Council,http://opendatacommunities.org/id/district-council/eden,Financial Services Manager,Emergency Planning and Works,Grants and contributions,THE RATE PAYER,40207656,02/12/2020,186230,1334,COVID 19 SMALL BUSINESS GRANT
Eden District Council,http://opendatacommunities.org/id/district-council/eden,Financial Services Manager,Emergency Planning and Works,Grants and contributions,THE RATE PAYER,40235132,02/12/2020,186231,1334,COVID 19 SMALL BUSINESS GRANT
Eden District Council,http://opendatacommunities.org/id/district-council/eden,Financial Services Manager,Emergency Planning and Works,Grants and contributions,Bb�s gents hairstylist�s,40193054,02/12/2020,186232,1334,COVID 19 SMALL BUSINESS GRANT
Eden District Council,http://opendatacommunities.org/id/district-council/eden,Financial Services Manager,Emergency Planning and Works,Grants and contributions,THE RATE PAYER,40243812,02/12/2020,186233,1334,COVID 19 SMALL BUSINESS GRANT
Eden District Council,http://opendatacommunities.org/id/district-council/eden,Financial Services Manager,Emergency Planning and Works,Grants and contributions,M&Co Trading Ltd,40250247,02/12/2020,186234,3000,COVID 19 SMALL BUSINESS GRANT
Eden District Council,http://opendatacommunities.org/id/district-council/eden,Financial Services Manager,Emergency Planning and Works,Grants and contributions, The Lion Gallery,40248572,02/12/2020,186235,1334,COVID 19 SMALL BUSINESS GRANT
Eden District Council,http://opendatacommunities.org/id/district-council/eden,Financial Services Manager,Emergency Planning and Works,Grants and contributions,THE RATE PAYER,40249513,02/12/2020,186236,1334,COVID 19 SMALL BUSINESS GRANT
Eden District Council,http://opendatacommunities.org/id/district-council/eden,Financial Services Manager,Emergency Planning and Works,Grants and contributions,Ullswaterview Cottage,40143905,02/12/2020,186237,1334,COVID 19 SMALL BUSINESS GRANT
Eden District Council,http://opendatacommunities.org/id/district-council/eden,Financial Services Manager,Emergency Planning and Works,Grants and contributions,Lily Preloved Designer Dress Agency,40226206,02/12/2020,186238,1334,COVID 19 SMALL BUSINESS GRANT
Eden District Council,http://opendatacommunities.org/id/district-council/eden,Financial Services Manager,Emergency Planning and Works,Grants and contributions,OnlyWillow Jewellery & Gifts,40236968,02/12/2020,186239,1334,COVID 19 SMALL BUSINESS GRANT
Eden District Council,http://opendatacommunities.org/id/district-council/eden,Financial Services Manager,Emergency Planning and Works,Grants and contributions,Timeless Hairdressing,40232744,02/12/2020,186240,1334,COVID 19 SMALL BUSINESS GRANT
Eden District Council,http://opendatacommunities.org/id/district-council/eden,Financial Services Manager,Emergency Planning and Works,Grants and contributions,THE RATE PAYER,40250308,02/12/2020,186241,1334,COVID 19 SMALL BUSINESS GRANT
Eden District Council,http://opendatacommunities.org/id/district-council/eden,Financial Services Manager,Emergency Planning and Works,Grants and contributions,Once Upon a Time Bookshop,40240042,02/12/2020,186242,1334,COVID 19 SMALL BUSINESS GRANT
Eden District Council,http://opendatacommunities.org/id/district-council/eden,Financial Services Manager,Emergency Planning and Works,Grants and contributions,Black Swan,40163923,02/12/2020,186243,3000,COVID 19 SMALL BUSINESS GRANT
Eden District Council,http://opendatacommunities.org/id/district-council/eden,Financial Services Manager,Emergency Planning and Works,Grants and contributions, Blue Poppy,40226732,02/12/2020,186244,1334,COVID 19 SMALL BUSINESS GRANT
Eden District Council,http://opendatacommunities.org/id/district-council/eden,Financial Services Manager,Emergency Planning and Works,Grants and contributions,Edenbridge cafe,40126900,02/12/2020,186245,1334,COVID 19 SMALL BUSINESS GRANT
Eden District Council,http://opendatacommunities.org/id/district-council/eden,Financial Services Manager,Emergency Planning and Works,Grants and contributions,THE RATE PAYER,40203487,02/12/2020,186246,1334,COVID 19 SMALL BUSINESS GRANT
Eden District Council,http://opendatacommunities.org/id/district-council/eden,Financial Services Manager,Emergency Planning and Works,Grants and contributions,Allen Park Foot Ltd,40168690,02/12/2020,186247,1334,COVID 19 SMALL BUSINESS GRANT
Eden District Council,http://opendatacommunities.org/id/district-council/eden,Financial Services Manager,Emergency Planning and Works,Grants and contributions,Allen Park Foot Ltd,40155137,02/12/2020,186248,2000,COVID 19 SMALL BUSINESS GRANT
Eden District Council,http://opendatacommunities.org/id/district-council/eden,Financial Services Manager,Emergency Planning and Works,Grants and contributions,Allen (Park Foot) Ltd,40213675,02/12/2020,186249,1334,COVID 19 SMALL BUSINESS GRANT
Eden District Council,http://opendatacommunities.org/id/district-council/eden,Financial Services Manager,Emergency Planning and Works,Grants and contributions,Hole House Farm Caravan Park,40055787,02/12/2020,186250,2000,COVID 19 SMALL BUSINESS GRANT
Eden District Council,http://opendatacommunities.org/id/district-council/eden,Financial Services Manager,Emergency Planning and Works,Grants and contributions,THE RATE PAYER,40238841,02/12/2020,186251,1334,COVID 19 SMALL BUSINESS GRANT
Eden District Council,http://opendatacommunities.org/id/district-council/eden,Financial Services Manager,Emergency Planning and Works,Grants and contributions,Garden Cottage,40238254,02/12/2020,186252,1334,COVID 19 SMALL BUSINESS GRANT
Eden District Council,http://opendatacommunities.org/id/district-council/eden,Financial Services Manager,Emergency Planning and Works,Grants and contributions,THE RATE PAYER,40223610,02/12/2020,186253,1334,COVID 19 SMALL BUSINESS GRANT
Eden District Council,http://opendatacommunities.org/id/district-council/eden,Financial Services Manager,Emergency Planning and Works,Grants and contributions,(Hair Zone),40225869,02/12/2020,186254,1334,COVID 19 SMALL BUSINESS GRANT
Eden District Council,http://opendatacommunities.org/id/district-council/eden,Financial Services Manager,Emergency Planning and Works,Grants and contributions,THE RATE PAYER,40224156,02/12/2020,186255,1334,COVID 19 SMALL BUSINESS GRANT
Eden District Council,http://opendatacommunities.org/id/district-council/eden,Financial Services Manager,Emergency Planning and Works,Grants and contributions,AGE CONCERN APPLEBY,40234801,02/12/2020,186256,1334,COVID 19 SMALL BUSINESS GRANT
Eden District Council,http://opendatacommunities.org/id/district-council/eden,Financial Services Manager,Emergency Planning and Works,Grants and contributions,David Hayton Ltd,40030764,02/12/2020,186257,2000,COVID 19 SMALL BUSINESS GRANT
Eden District Council,http://opendatacommunities.org/id/district-council/eden,Financial Services Manager,Emergency Planning and Works,Grants and contributions,Stone Harrison Ltd T/A Horse and Farrier,40203791,02/12/2020,186258,3000,COVID 19 SMALL BUSINESS GRANT
Eden District Council,http://opendatacommunities.org/id/district-council/eden,Financial Services Manager,Emergency Planning and Works,Grants and contributions,Lake District Estates Co Ltd,40042675,02/12/2020,186259,3000,COVID 19 SMALL BUSINESS GRANT
Eden District Council,http://opendatacommunities.org/id/district-council/eden,Financial Services Manager,Emergency Planning and Works,Grants and contributions,THE RATE PAYER,40147358,02/12/2020,186260,1334,COVID 19 SMALL BUSINESS GRANT
Eden District Council,http://opendatacommunities.org/id/district-council/eden,Financial Services Manager,Emergency Planning and Works,Grants and contributions,Mulvey Antique Clocks,40209676,02/12/2020,186261,1334,COVID 19 SMALL BUSINESS GRANT
Eden District Council,http://opendatacommunities.org/id/district-council/eden,Financial Services Manager,Emergency Planning and Works,Grants and contributions,George and Dragon Clifton,40178932,02/12/2020,186262,3000,COVID 19 SMALL BUSINESS GRANT
Eden District Council,http://opendatacommunities.org/id/district-council/eden,Financial Services Manager,Emergency Planning and Works,Grants and contributions,Janus Pub Co Ltd,40249971,02/12/2020,186263,2000,COVID 19 SMALL BUSINESS GRANT
Eden District Council,http://opendatacommunities.org/id/district-council/eden,Financial Services Manager,Emergency Planning and Works,Grants and contributions,Red Barn Cottages,40229304,02/12/2020,186264,1334,COVID 19 SMALL BUSINESS GRANT
Eden District Council,http://opendatacommunities.org/id/district-council/eden,Financial Services Manager,Emergency Planning and Works,Grants and contributions,THE RATE PAYER,40249384,02/12/2020,186265,1334,COVID 19 SMALL BUSINESS GRANT
Eden District Council,http://opendatacommunities.org/id/district-council/eden,Financial Services Manager,Emergency Planning and Works,Grants and contributions,Fellside Carpets & Flooring Ltd,40219550,02/12/2020,186266,1334,COVID 19 SMALL BUSINESS GRANT
Eden District Council,http://opendatacommunities.org/id/district-council/eden,Financial Services Manager,Emergency Planning and Works,Grants and contributions,THE RATE PAYER,40231185,02/12/2020,186267,1334,COVID 19 SMALL BUSINESS GRANT
Eden District Council,http://opendatacommunities.org/id/district-council/eden,Financial Services Manager,Emergency Planning and Works,Grants and contributions,THE RATE PAYER,40228349,02/12/2020,186268,1334,COVID 19 SMALL BUSINESS GRANT
Eden District Council,http://opendatacommunities.org/id/district-council/eden,Financial Services Manager,Emergency Planning and Works,Grants and contributions,THE RATE PAYER,40229038,02/12/2020,186269,1334,COVID 19 SMALL BUSINESS GRANT
Eden District Council,http://opendatacommunities.org/id/district-council/eden,Financial Services Manager,Emergency Planning and Works,Grants and contributions,THE RATE PAYER,40249674,02/12/2020,186270,1334,COVID 19 SMALL BUSINESS GRANT
Eden District Council,http://opendatacommunities.org/id/district-council/eden,Financial Services Manager,Emergency Planning and Works,Grants and contributions,THE RATE PAYER,40250322,02/12/2020,186271,1334,COVID 19 SMALL BUSINESS GRANT
Eden District Council,http://opendatacommunities.org/id/district-council/eden,Financial Services Manager,Emergency Planning and Works,Grants and contributions,THE RATE PAYER,40037727,02/12/2020,186272,1334,COVID 19 SMALL BUSINESS GRANT
Eden District Council,http://opendatacommunities.org/id/district-council/eden,Financial Services Manager,Emergency Planning and Works,Grants and contributions,THE RATE PAYER,40056643,02/12/2020,186273,2000,COVID 19 SMALL BUSINESS GRANT
Eden District Council,http://opendatacommunities.org/id/district-council/eden,Financial Services Manager,Emergency Planning and Works,Grants and contributions,HUTTONS CAR SALES LTD,40200457,02/12/2020,186274,2000,COVID 19 SMALL BUSINESS GRANT
Eden District Council,http://opendatacommunities.org/id/district-council/eden,Financial Services Manager,Emergency Planning and Works,Grants and contributions,THE RATE PAYER,40247036,02/12/2020,186275,1334,COVID 19 SMALL BUSINESS GRANT
Eden District Council,http://opendatacommunities.org/id/district-council/eden,Financial Services Manager,Emergency Planning and Works,Grants and contributions,Platform 3 play,40246439,02/12/2020,186276,1334,COVID 19 SMALL BUSINESS GRANT
Eden District Council,http://opendatacommunities.org/id/district-council/eden,Financial Services Manager,Emergency Planning and Works,Grants and contributions,AIRSTREAM EUROPE LTD,40186230,02/12/2020,186277,2000,COVID 19 SMALL BUSINESS GRANT
Eden District Council,http://opendatacommunities.org/id/district-council/eden,Financial Services Manager,Emergency Planning and Works,Grants and contributions,THE RATE PAYER,40191010,02/12/2020,186278,1334,COVID 19 SMALL BUSINESS GRANT
Eden District Council,http://opendatacommunities.org/id/district-council/eden,Financial Services Manager,Emergency Planning and Works,Grants and contributions,Country Village Inns,40248169,02/12/2020,186279,3000,COVID 19 SMALL BUSINESS GRANT
Eden District Council,http://opendatacommunities.org/id/district-council/eden,Financial Services Manager,Emergency Planning and Works,Grants and contributions,THE RATE PAYER,40039662,02/12/2020,186280,3000,COVID 19 SMALL BUSINESS GRANT
Eden District Council,http://opendatacommunities.org/id/district-council/eden,Financial Services Manager,Emergency Planning and Works,Grants and contributions,Macdonald Hotels PLC,40140999,02/12/2020,186281,3000,COVID 19 SMALL BUSINESS GRANT
Eden District Council,http://opendatacommunities.org/id/district-council/eden,Financial Services Manager,Emergency Planning and Works,Grants and contributions,THE RATE PAYER,40132820,02/12/2020,186282,3000,COVID 19 SMALL BUSINESS GRANT
Eden District Council,http://opendatacommunities.org/id/district-council/eden,Financial Services Manager,Emergency Planning and Works,Grants and contributions,THE RATE PAYER,40249636,02/12/2020,186283,1334,COVID 19 SMALL BUSINESS GRANT
Eden District Council,http://opendatacommunities.org/id/district-council/eden,Financial Services Manager,Emergency Planning and Works,Grants and contributions,Royal Oak Inn,40246200,02/12/2020,186284,3000,COVID 19 SMALL BUSINESS GRANT
Eden District Council,http://opendatacommunities.org/id/district-council/eden,Financial Services Manager,Emergency Planning and Works,Grants and contributions,EDEN HOUSING ASSOCIATION LTD,EDE001,02/12/2020,186294,2500,COVID SUPPORT GRANT REF LR1 1589
Eden District Council,http://opendatacommunities.org/id/district-council/eden,Financial Services Manager,Emergency Planning and Works,Grants and contributions,THE RATE PAYER,40044862,04/12/2020,186346,1334,COVID 19 SMALL BUSINESS GRANT
Eden District Council,http://opendatacommunities.org/id/district-council/eden,Financial Services Manager,Emergency Planning and Works,Grants and contributions,THE RATE PAYER,40155519,04/12/2020,186347,1334,COVID 19 SMALL BUSINESS GRANT
Eden District Council,http://opendatacommunities.org/id/district-council/eden,Financial Services Manager,Emergency Planning and Works,Grants and contributions,THE RATE PAYER,40241939,04/12/2020,186348,1334,COVID 19 SMALL BUSINESS GRANT
Eden District Council,http://opendatacommunities.org/id/district-council/eden,Financial Services Manager,Emergency Planning and Works,Grants and contributions,THE RATE PAYER,40236821,04/12/2020,186349,1334,COVID 19 SMALL BUSINESS GRANT
Eden District Council,http://opendatacommunities.org/id/district-council/eden,Financial Services Manager,Emergency Planning and Works,Grants and contributions,THE RATE PAYER,40235637,04/12/2020,186350,1334,COVID 19 SMALL BUSINESS GRANT
Eden District Council,http://opendatacommunities.org/id/district-council/eden,Financial Services Manager,Emergency Planning and Works,Grants and contributions,THE RATE PAYER,40209614,04/12/2020,186351,1334,COVID 19 SMALL BUSINESS GRANT
Eden District Council,http://opendatacommunities.org/id/district-council/eden,Financial Services Manager,Emergency Planning and Works,Grants and contributions,THE RATE PAYER,40212023,04/12/2020,186352,1334,COVID 19 SMALL BUSINESS GRANT
Eden District Council,http://opendatacommunities.org/id/district-council/eden,Financial Services Manager,Emergency Planning and Works,Grants and contributions,Garden Barn,40226008,04/12/2020,186353,1334,COVID 19 SMALL BUSINESS GRANT
Eden District Council,http://opendatacommunities.org/id/district-council/eden,Financial Services Manager,Emergency Planning and Works,Grants and contributions,WESTOE COTTAGE,40228028,04/12/2020,186354,1334,COVID 19 SMALL BUSINESS GRANT
Eden District Council,http://opendatacommunities.org/id/district-council/eden,Financial Services Manager,Emergency Planning and Works,Grants and contributions,Toddles Barn,40219116,04/12/2020,186355,1334,COVID 19 SMALL BUSINESS GRANT
Eden District Council,http://opendatacommunities.org/id/district-council/eden,Financial Services Manager,Emergency Planning and Works,Grants and contributions,Borrowdale Cottage,40238827,04/12/2020,186356,1334,COVID 19 SMALL BUSINESS GRANT
Eden District Council,http://opendatacommunities.org/id/district-council/eden,Financial Services Manager,Emergency Planning and Works,Grants and contributions,THE RATE PAYER,40247180,04/12/2020,186357,1334,COVID 19 SMALL BUSINESS GRANT
Eden District Council,http://opendatacommunities.org/id/district-council/eden,Financial Services Manager,Emergency Planning and Works,Grants and contributions,THE RATE PAYER,40223689,04/12/2020,186358,1334,COVID 19 SMALL BUSINESS GRANT
Eden District Council,http://opendatacommunities.org/id/district-council/eden,Financial Services Manager,Emergency Planning and Works,Grants and contributions,THE RATE PAYER,40202507,04/12/2020,186359,1334,COVID 19 SMALL BUSINESS GRANT
Eden District Council,http://opendatacommunities.org/id/district-council/eden,Financial Services Manager,Emergency Planning and Works,Grants and contributions,Cockabundee Ltd,40203944,04/12/2020,186360,1334,COVID 19 SMALL BUSINESS GRANT
Eden District Council,http://opendatacommunities.org/id/district-council/eden,Financial Services Manager,Emergency Planning and Works,Grants and contributions,WRENS,40232980,04/12/2020,186361,1334,COVID 19 SMALL BUSINESS GRANT
Eden District Council,http://opendatacommunities.org/id/district-council/eden,Financial Services Manager,Emergency Planning and Works,Grants and contributions,THE RATE PAYER,40212931,04/12/2020,186362,1334,COVID 19 SMALL BUSINESS GRANT
Eden District Council,http://opendatacommunities.org/id/district-council/eden,Financial Services Manager,Emergency Planning and Works,Grants and contributions,THE RATE PAYER,40225579,04/12/2020,186363,1334,COVID 19 SMALL BUSINESS GRANT
Eden District Council,http://opendatacommunities.org/id/district-council/eden,Financial Services Manager,Emergency Planning and Works,Grants and contributions,THE RATE PAYER,40208604,04/12/2020,186364,1334,COVID 19 SMALL BUSINESS GRANT
Eden District Council,http://opendatacommunities.org/id/district-council/eden,Financial Services Manager,Emergency Planning and Works,Grants and contributions,THE RATE PAYER,40249346,04/12/2020,186365,1334,COVID 19 SMALL BUSINESS GRANT
Eden District Council,http://opendatacommunities.org/id/district-council/eden,Financial Services Manager,Emergency Planning and Works,Grants and contributions,THE RATE PAYER,40042132,04/12/2020,186366,1334,COVID 19 SMALL BUSINESS GRANT
Eden District Council,http://opendatacommunities.org/id/district-council/eden,Financial Services Manager,Emergency Planning and Works,Grants and contributions,THE EVERGREEN CLUB,40171948,04/12/2020,186367,1334,COVID 19 SMALL BUSINESS GRANT
Eden District Council,http://opendatacommunities.org/id/district-council/eden,Financial Services Manager,Emergency Planning and Works,Grants and contributions,Gio gents hair stylist,40217035,04/12/2020,186368,1334,COVID 19 SMALL BUSINESS GRANT
Eden District Council,http://opendatacommunities.org/id/district-council/eden,Financial Services Manager,Emergency Planning and Works,Grants and contributions,THE RATE PAYER,40247623,04/12/2020,186369,1334,COVID 19 SMALL BUSINESS GRANT
Eden District Council,http://opendatacommunities.org/id/district-council/eden,Financial Services Manager,Emergency Planning and Works,Grants and contributions,Penrith AFC,40200099,04/12/2020,186370,1334,COVID 19 SMALL BUSINESS GRANT
Eden District Council,http://opendatacommunities.org/id/district-council/eden,Financial Services Manager,Emergency Planning and Works,Grants and contributions,T/A RON'S CARAVAN SERVICES,40239219,04/12/2020,186371,1334,COVID 19 SMALL BUSINESS GRANT
Eden District Council,http://opendatacommunities.org/id/district-council/eden,Financial Services Manager,Emergency Planning and Works,Grants and contributions,Darwin (Thanet Well) Ltd,40215725,04/12/2020,186372,2000,COVID 19 SMALL BUSINESS GRANT
Eden District Council,http://opendatacommunities.org/id/district-council/eden,Financial Services Manager,Emergency Planning and Works,Grants and contributions,The Studio Morland CIC,40228981,04/12/2020,186373,1334,COVID 19 SMALL BUSINESS GRANT
Eden District Council,http://opendatacommunities.org/id/district-council/eden,Financial Services Manager,Emergency Planning and Works,Grants and contributions,THE RATE PAYER,40220857,04/12/2020,186374,1334,COVID 19 SMALL BUSINESS GRANT
Eden District Council,http://opendatacommunities.org/id/district-council/eden,Financial Services Manager,Emergency Planning and Works,Grants and contributions,THE RATE PAYER,40249254,04/12/2020,186375,1334,COVID 19 SMALL BUSINESS GRANT
Eden District Council,http://opendatacommunities.org/id/district-council/eden,Financial Services Manager,Emergency Planning and Works,Grants and contributions,THE RATE PAYER,40250063,04/12/2020,186376,1334,COVID 19 SMALL BUSINESS GRANT
Eden District Council,http://opendatacommunities.org/id/district-council/eden,Financial Services Manager,Emergency Planning and Works,Grants and contributions,THE RATE PAYER,40126306,04/12/2020,186377,1334,COVID 19 SMALL BUSINESS GRANT
Eden District Council,http://opendatacommunities.org/id/district-council/eden,Financial Services Manager,Emergency Planning and Works,Grants and contributions,The Quiet Site,40029535,04/12/2020,186378,3000,COVID 19 SMALL BUSINESS GRANT
Eden District Council,http://opendatacommunities.org/id/district-council/eden,Financial Services Manager,Emergency Planning and Works,Grants and contributions,LCS,42001285,04/12/2020,186379,1334,COVID 19 SMALL BUSINESS GRANT
Eden District Council,http://opendatacommunities.org/id/district-council/eden,Financial Services Manager,Emergency Planning and Works,Grants and contributions,Pool Training Services Ltd,42001286,04/12/2020,186380,1334,COVID 19 SMALL BUSINESS GRANT
Eden District Council,http://opendatacommunities.org/id/district-council/eden,Financial Services Manager,Emergency Planning and Works,Grants and contributions,THE RATE PAYER,42001261,04/12/2020,186381,1334,COVID 19 SMALL BUSINESS GRANT
Eden District Council,http://opendatacommunities.org/id/district-council/eden,Financial Services Manager,Emergency Planning and Works,Grants and contributions,Midtown Camping and Caravan Site,42001273,04/12/2020,186382,1334,COVID 19 SMALL BUSINESS GRANT
Eden District Council,http://opendatacommunities.org/id/district-council/eden,Financial Services Manager,Emergency Planning and Works,Grants and contributions,THE RATE PAYER,42001268,04/12/2020,186383,1334,COVID 19 SMALL BUSINESS GRANT
Eden District Council,http://opendatacommunities.org/id/district-council/eden,Financial Services Manager,Emergency Planning and Works,Grants and contributions,glam beauty and nails,42001278,04/12/2020,186384,1334,COVID 19 SMALL BUSINESS GRANT
Eden District Council,http://opendatacommunities.org/id/district-council/eden,Financial Services Manager,Emergency Planning and Works,Grants and contributions,JayBox Ltd,42001272,04/12/2020,186385,1334,COVID 19 SMALL BUSINESS GRANT
Eden District Council,http://opendatacommunities.org/id/district-council/eden,Financial Services Manager,Emergency Planning and Works,Grants and contributions,Julie Bell Consulting Ltd,42001290,04/12/2020,186386,1334,COVID 19 SMALL BUSINESS GRANT
Eden District Council,http://opendatacommunities.org/id/district-council/eden,Financial Services Manager,Emergency Planning and Works,Grants and contributions,School House Bed and Breakfast,42001267,04/12/2020,186387,1334,COVID 19 SMALL BUSINESS GRANT
Eden District Council,http://opendatacommunities.org/id/district-council/eden,Financial Services Manager,Emergency Planning and Works,Grants and contributions,THE RATE PAYER,42001277,04/12/2020,186388,1334,COVID 19 SMALL BUSINESS GRANT
Eden District Council,http://opendatacommunities.org/id/district-council/eden,Financial Services Manager,Emergency Planning and Works,Grants and contributions,Zoobidoo,42001279,04/12/2020,186389,1334,COVID 19 SMALL BUSINESS GRANT
Eden District Council,http://opendatacommunities.org/id/district-council/eden,Financial Services Manager,Emergency Planning and Works,Grants and contributions,Casbah Coffee,42001281,04/12/2020,186390,1334,COVID 19 SMALL BUSINESS GRANT
Eden District Council,http://opendatacommunities.org/id/district-council/eden,Financial Services Manager,Emergency Planning and Works,Grants and contributions, crossfell camperhire,42001276,04/12/2020,186391,1334,COVID 19 SMALL BUSINESS GRANT
Eden District Council,http://opendatacommunities.org/id/district-council/eden,Financial Services Manager,Emergency Planning and Works,Grants and contributions,Blencathra Foxhounds,40247944,04/12/2020,186392,1334,COVID 19 SMALL BUSINESS GRANT
Eden District Council,http://opendatacommunities.org/id/district-council/eden,Financial Services Manager,Emergency Planning and Works,Grants and contributions,Dottie maes LTD,42001287,04/12/2020,186393,1334,COVID 19 SMALL BUSINESS GRANT
Eden District Council,http://opendatacommunities.org/id/district-council/eden,Financial Services Manager,Emergency Planning and Works,Grants and contributions,Beauty by Lottie,42001293,04/12/2020,186394,1334,COVID 19 SMALL BUSINESS GRANT
Eden District Council,http://opendatacommunities.org/id/district-council/eden,Financial Services Manager,Emergency Planning and Works,Grants and contributions,The Flat Basket Company,42001266,04/12/2020,186395,1334,COVID 19 SMALL BUSINESS GRANT
Eden District Council,http://opendatacommunities.org/id/district-council/eden,Financial Services Manager,Emergency Planning and Works,Grants and contributions,Morton Garden Buildings Limited,40190666,04/12/2020,186396,1334,COVID 19 SMALL BUSINESS GRANT
Eden District Council,http://opendatacommunities.org/id/district-council/eden,Financial Services Manager,Emergency Planning and Works,Grants and contributions,THE RATE PAYER,42001289,04/12/2020,186397,1334,COVID 19 SMALL BUSINESS GRANT
Eden District Council,http://opendatacommunities.org/id/district-council/eden,Financial Services Manager,Emergency Planning and Works,Grants and contributions,blaze beauty,42001294,04/12/2020,186398,1334,COVID 19 SMALL BUSINESS GRANT
Eden District Council,http://opendatacommunities.org/id/district-council/eden,Financial Services Manager,Emergency Planning and Works,Grants and contributions,North Lakes Foods Ltd,40126443,04/12/2020,186399,3334,COVID 19 SMALL BUSINESS GRANT
Eden District Council,http://opendatacommunities.org/id/district-council/eden,Financial Services Manager,Emergency Planning and Works,Grants and contributions,Co.Sec.Greystoke Stores Ltd,40174732,04/12/2020,186400,1334,COVID 19 SMALL BUSINESS GRANT
Eden District Council,http://opendatacommunities.org/id/district-council/eden,Financial Services Manager,Emergency Planning and Works,Grants and contributions,Dowsonfitness,42001269,04/12/2020,186401,1334,COVID 19 SMALL BUSINESS GRANT
Eden District Council,http://opendatacommunities.org/id/district-council/eden,Financial Services Manager,Emergency Planning and Works,Grants and contributions,mackays4meat,42001275,04/12/2020,186402,1334,COVID 19 SMALL BUSINESS GRANT
Eden District Council,http://opendatacommunities.org/id/district-council/eden,Financial Services Manager,Emergency Planning and Works,Grants and contributions,VistaVeg Ltd,42001283,04/12/2020,186403,1334,COVID 19 SMALL BUSINESS GRANT
Eden District Council,http://opendatacommunities.org/id/district-council/eden,Financial Services Manager,Emergency Planning and Works,Grants and contributions,Saddlers Bakery,40239578,04/12/2020,186404,1334,COVID 19 SMALL BUSINESS GRANT
Eden District Council,http://opendatacommunities.org/id/district-council/eden,Financial Services Manager,Emergency Planning and Works,Grants and contributions,THE RATE PAYER,42001262,04/12/2020,186405,1334,COVID 19 SMALL BUSINESS GRANT
Eden District Council,http://opendatacommunities.org/id/district-council/eden,Financial Services Manager,Emergency Planning and Works,Grants and contributions,Cumbria Taxi,42001263,04/12/2020,186406,2000,COVID 19 SMALL BUSINESS GRANT
Eden District Council,http://opendatacommunities.org/id/district-council/eden,Financial Services Manager,Emergency Planning and Works,Grants and contributions,THE RATE PAYER,42001264,04/12/2020,186407,1334,COVID 19 SMALL BUSINESS GRANT
Eden District Council,http://opendatacommunities.org/id/district-council/eden,Financial Services Manager,Emergency Planning and Works,Grants and contributions,Hair salon,42001265,04/12/2020,186408,1334,COVID 19 SMALL BUSINESS GRANT
Eden District Council,http://opendatacommunities.org/id/district-council/eden,Financial Services Manager,Emergency Planning and Works,Grants and contributions,The Apartment of Antiquity (Rattan and Rush),42001270,04/12/2020,186409,1334,COVID 19 SMALL BUSINESS GRANT
Eden District Council,http://opendatacommunities.org/id/district-council/eden,Financial Services Manager,Emergency Planning and Works,Grants and contributions,Derwent property services,42001271,04/12/2020,186410,1334,COVID 19 SMALL BUSINESS GRANT
Eden District Council,http://opendatacommunities.org/id/district-council/eden,Financial Services Manager,Emergency Planning and Works,Grants and contributions,JT Joinery,42001274,04/12/2020,186411,1334,COVID 19 SMALL BUSINESS GRANT
Eden District Council,http://opendatacommunities.org/id/district-council/eden,Financial Services Manager,Emergency Planning and Works,Grants and contributions,THE RATE PAYER,42001280,04/12/2020,186412,1334,COVID 19 SMALL BUSINESS GRANT
Eden District Council,http://opendatacommunities.org/id/district-council/eden,Financial Services Manager,Emergency Planning and Works,Grants and contributions,THE RATE PAYER,42001282,04/12/2020,186413,1334,COVID 19 SMALL BUSINESS GRANT
Eden District Council,http://opendatacommunities.org/id/district-council/eden,Financial Services Manager,Emergency Planning and Works,Grants and contributions,North Lakes aesthetics,42001284,04/12/2020,186414,1334,COVID 19 SMALL BUSINESS GRANT
Eden District Council,http://opendatacommunities.org/id/district-council/eden,Financial Services Manager,Emergency Planning and Works,Grants and contributions,Brads Taxis,42001288,04/12/2020,186415,1334,COVID 19 SMALL BUSINESS GRANT
Eden District Council,http://opendatacommunities.org/id/district-council/eden,Financial Services Manager,Emergency Planning and Works,Grants and contributions,THE RATE PAYER,42001291,04/12/2020,186416,1334,COVID 19 SMALL BUSINESS GRANT
Eden District Council,http://opendatacommunities.org/id/district-council/eden,Financial Services Manager,Emergency Planning and Works,Grants and contributions,THE RATE PAYER,42001292,04/12/2020,186417,1334,COVID 19 SMALL BUSINESS GRANT
Eden District Council,http://opendatacommunities.org/id/district-council/eden,Commercial Services Manager,Emergency Planning and Works,Professional fees,REDKITE INNOVATIONS LTD,RED012,11/12/2020,184934,8000,Q2 EDEN BUSINESS ASSIST
Eden District Council,http://opendatacommunities.org/id/district-council/eden,Financial Services Manager,Emergency Planning and Works,Advertising,BARRNON MEDIA LTD,CUM001,11/12/2020,185862,500,CORONA
Eden District Council,http://opendatacommunities.org/id/district-council/eden,Financial Services Manager,Heart of Cumbria,Professional fees,ARLINGCLOSE LTD,ARL002,11/12/2020,186297,10500,REVIEW HOUSING COMPANY
Eden District Council,http://opendatacommunities.org/id/district-council/eden,Transformation & Customers Head of,Corporate Services,Equipment � maintenance,THE FINISHING POINT LTD,FIN007,11/12/2020,186303,655.2,SERVICE RENEWAL 15.1.21-14.01.22
Eden District Council,http://opendatacommunities.org/id/district-council/eden,Financial Services Manager,Emergency Planning and Works,Grants and contributions,Lazonby Bowling Club,40050706,07/12/2020,186430,1334,COVID 19 SMALL BUSINESS GRANT
Eden District Council,http://opendatacommunities.org/id/district-council/eden,Financial Services Manager,Emergency Planning and Works,Grants and contributions,Kirkoswald Church Institute,40048956,07/12/2020,186431,1334,COVID 19 SMALL BUSINESS GRANT
Eden District Council,http://opendatacommunities.org/id/district-council/eden,Financial Services Manager,Emergency Planning and Works,Grants and contributions,Glassonby Cottages,40211419,07/12/2020,186432,1334,COVID 19 SMALL BUSINESS GRANT
Eden District Council,http://opendatacommunities.org/id/district-council/eden,Financial Services Manager,Emergency Planning and Works,Grants and contributions,Jenny's Croft & Elk Cottage,40211426,07/12/2020,186433,1334,COVID 19 SMALL BUSINESS GRANT
Eden District Council,http://opendatacommunities.org/id/district-council/eden,Financial Services Manager,Emergency Planning and Works,Grants and contributions,Dunkeld Cottage,40222259,07/12/2020,186434,1334,COVID 19 SMALL BUSINESS GRANT
Eden District Council,http://opendatacommunities.org/id/district-council/eden,Financial Services Manager,Emergency Planning and Works,Grants and contributions,Eamont Bridge Village Hall Comm,40054609,07/12/2020,186435,1334,COVID 19 SMALL BUSINESS GRANT
Eden District Council,http://opendatacommunities.org/id/district-council/eden,Financial Services Manager,Emergency Planning and Works,Grants and contributions,Ullswater Yacht Club Limited,40039013,07/12/2020,186436,2000,COVID 19 SMALL BUSINESS GRANT
Eden District Council,http://opendatacommunities.org/id/district-council/eden,Financial Services Manager,Emergency Planning and Works,Grants and contributions,Ullswater Navigation & Transit Co,40055404,07/12/2020,186437,1334,COVID 19 SMALL BUSINESS GRANT
Eden District Council,http://opendatacommunities.org/id/district-council/eden,Financial Services Manager,Emergency Planning and Works,Grants and contributions,Ullswater Navigations & Transit Co,40045391,07/12/2020,186438,2000,COVID 19 SMALL BUSINESS GRANT
Eden District Council,http://opendatacommunities.org/id/district-council/eden,Financial Services Manager,Emergency Planning and Works,Grants and contributions,Askham & Dist Community Centre,40033114,07/12/2020,186439,1334,COVID 19 SMALL BUSINESS GRANT
Eden District Council,http://opendatacommunities.org/id/district-council/eden,Financial Services Manager,Emergency Planning and Works,Grants and contributions,Talbot Studio,40174602,07/12/2020,186440,1334,COVID 19 SMALL BUSINESS GRANT
Eden District Council,http://opendatacommunities.org/id/district-council/eden,Financial Services Manager,Emergency Planning and Works,Grants and contributions,Goose Garth Helton,40102652,07/12/2020,186441,1334,COVID 19 SMALL BUSINESS GRANT
Eden District Council,http://opendatacommunities.org/id/district-council/eden,Financial Services Manager,Emergency Planning and Works,Grants and contributions,Talbot House,40174596,07/12/2020,186442,1334,COVID 19 SMALL BUSINESS GRANT
Eden District Council,http://opendatacommunities.org/id/district-council/eden,Financial Services Manager,Emergency Planning and Works,Grants and contributions,Bampton Village Hall,40033015,07/12/2020,186443,1334,COVID 19 SMALL BUSINESS GRANT
Eden District Council,http://opendatacommunities.org/id/district-council/eden,Financial Services Manager,Emergency Planning and Works,Grants and contributions,Well Tree Cottage,40180232,07/12/2020,186444,1334,COVID 19 SMALL BUSINESS GRANT
Eden District Council,http://opendatacommunities.org/id/district-council/eden,Financial Services Manager,Emergency Planning and Works,Grants and contributions,THE RATE PAYER,40176431,07/12/2020,186445,1334,COVID 19 SMALL BUSINESS GRANT
Eden District Council,http://opendatacommunities.org/id/district-council/eden,Financial Services Manager,Emergency Planning and Works,Grants and contributions,ORTON MARKET HALL,40189949,07/12/2020,186446,1334,COVID 19 SMALL BUSINESS GRANT
Eden District Council,http://opendatacommunities.org/id/district-council/eden,Financial Services Manager,Emergency Planning and Works,Grants and contributions,Town End Cottage,40108018,07/12/2020,186447,1334,COVID 19 SMALL BUSINESS GRANT
Eden District Council,http://opendatacommunities.org/id/district-council/eden,Financial Services Manager,Emergency Planning and Works,Grants and contributions,Blencowe Village Hall,40052948,07/12/2020,186448,1334,COVID 19 SMALL BUSINESS GRANT
Eden District Council,http://opendatacommunities.org/id/district-council/eden,Financial Services Manager,Emergency Planning and Works,Grants and contributions,THE RATE PAYER,40206073,07/12/2020,186449,1334,COVID 19 SMALL BUSINESS GRANT
Eden District Council,http://opendatacommunities.org/id/district-council/eden,Financial Services Manager,Emergency Planning and Works,Grants and contributions,Rose Farm House,40236944,07/12/2020,186450,1334,COVID 19 SMALL BUSINESS GRANT
Eden District Council,http://opendatacommunities.org/id/district-council/eden,Financial Services Manager,Emergency Planning and Works,Grants and contributions,Campsite Side Farm,40142155,07/12/2020,186451,1334,COVID 19 SMALL BUSINESS GRANT
Eden District Council,http://opendatacommunities.org/id/district-council/eden,Financial Services Manager,Emergency Planning and Works,Grants and contributions,Bank End,40147921,07/12/2020,186452,1334,COVID 19 SMALL BUSINESS GRANT
Eden District Council,http://opendatacommunities.org/id/district-council/eden,Financial Services Manager,Emergency Planning and Works,Grants and contributions,THE RATE PAYER,40228332,07/12/2020,186453,1334,COVID 19 SMALL BUSINESS GRANT
Eden District Council,http://opendatacommunities.org/id/district-council/eden,Financial Services Manager,Emergency Planning and Works,Grants and contributions,LAVENDER DAISY & POPPY COTTS WY,40164216,07/12/2020,186454,1334,COVID 19 SMALL BUSINESS GRANT
Eden District Council,http://opendatacommunities.org/id/district-council/eden,Financial Services Manager,Emergency Planning and Works,Grants and contributions,Ullswater Navigation & Transit Co,40033527,07/12/2020,186455,2000,COVID 19 SMALL BUSINESS GRANT
Eden District Council,http://opendatacommunities.org/id/district-council/eden,Financial Services Manager,Emergency Planning and Works,Grants and contributions,VIP's studios,40244334,07/12/2020,186456,1334,COVID 19 SMALL BUSINESS GRANT
Eden District Council,http://opendatacommunities.org/id/district-council/eden,Financial Services Manager,Emergency Planning and Works,Grants and contributions,Penrith Cricket Sports & Social Club,40052580,07/12/2020,186457,1334,COVID 19 SMALL BUSINESS GRANT
Eden District Council,http://opendatacommunities.org/id/district-council/eden,Financial Services Manager,Emergency Planning and Works,Grants and contributions,Great Salkeld Village Hall,40048932,07/12/2020,186458,1334,COVID 19 SMALL BUSINESS GRANT
Eden District Council,http://opendatacommunities.org/id/district-council/eden,Financial Services Manager,Emergency Planning and Works,Grants and contributions,Nunwick Cricket Club,40051914,07/12/2020,186459,1334,COVID 19 SMALL BUSINESS GRANT
Eden District Council,http://opendatacommunities.org/id/district-council/eden,Financial Services Manager,Emergency Planning and Works,Grants and contributions,Threlkeld Recreation Field Trust,40143264,07/12/2020,186460,1334,COVID 19 SMALL BUSINESS GRANT
Eden District Council,http://opendatacommunities.org/id/district-council/eden,Financial Services Manager,Emergency Planning and Works,Grants and contributions,Bolton Memorial Hall Committee,40057165,07/12/2020,186461,1334,COVID 19 SMALL BUSINESS GRANT
Eden District Council,http://opendatacommunities.org/id/district-council/eden,Financial Services Manager,Emergency Planning and Works,Grants and contributions,Long Marton Village Institute,40031439,07/12/2020,186462,1334,COVID 19 SMALL BUSINESS GRANT
Eden District Council,http://opendatacommunities.org/id/district-council/eden,Financial Services Manager,Emergency Planning and Works,Grants and contributions,Dufton Village Hall,40052672,07/12/2020,186463,1334,COVID 19 SMALL BUSINESS GRANT
Eden District Council,http://opendatacommunities.org/id/district-council/eden,Financial Services Manager,Emergency Planning and Works,Grants and contributions,R & M Appleby Ltd,40222983,07/12/2020,186464,1334,COVID 19 SMALL BUSINESS GRANT
Eden District Council,http://opendatacommunities.org/id/district-council/eden,Financial Services Manager,Emergency Planning and Works,Grants and contributions,Park House Caravan Site,40177175,07/12/2020,186465,1334,COVID 19 SMALL BUSINESS GRANT
Eden District Council,http://opendatacommunities.org/id/district-council/eden,Financial Services Manager,Emergency Planning and Works,Grants and contributions,THE RATE PAYER,40188588,07/12/2020,186466,1334,COVID 19 SMALL BUSINESS GRANT
Eden District Council,http://opendatacommunities.org/id/district-council/eden,Financial Services Manager,Emergency Planning and Works,Grants and contributions,Brampton Village Hall,40045452,07/12/2020,186467,1334,COVID 19 SMALL BUSINESS GRANT
Eden District Council,http://opendatacommunities.org/id/district-council/eden,Financial Services Manager,Emergency Planning and Works,Grants and contributions,Self catering holiday let,40162715,07/12/2020,186468,1334,COVID 19 SMALL BUSINESS GRANT
Eden District Council,http://opendatacommunities.org/id/district-council/eden,Financial Services Manager,Emergency Planning and Works,Grants and contributions,Appleby Girl Guide Assoc,40113294,07/12/2020,186469,1334,COVID 19 SMALL BUSINESS GRANT
Eden District Council,http://opendatacommunities.org/id/district-council/eden,Financial Services Manager,Emergency Planning and Works,Grants and contributions,Musgrave Parish Institute,40050676,07/12/2020,186470,1334,COVID 19 SMALL BUSINESS GRANT
Eden District Council,http://opendatacommunities.org/id/district-council/eden,Financial Services Manager,Emergency Planning and Works,Grants and contributions,THE RATE PAYER,40248220,07/12/2020,186471,1334,COVID 19 SMALL BUSINESS GRANT
Eden District Council,http://opendatacommunities.org/id/district-council/eden,Financial Services Manager,Emergency Planning and Works,Grants and contributions,Newbiggin-on-Lune Public Hall,40050157,07/12/2020,186472,1334,COVID 19 SMALL BUSINESS GRANT
Eden District Council,http://opendatacommunities.org/id/district-council/eden,Financial Services Manager,Emergency Planning and Works,Grants and contributions,Croglin Village Hall Committee,40054135,07/12/2020,186473,1334,COVID 19 SMALL BUSINESS GRANT
Eden District Council,http://opendatacommunities.org/id/district-council/eden,Financial Services Manager,Emergency Planning and Works,Grants and contributions,THE RATE PAYER,40209218,07/12/2020,186474,1334,COVID 19 SMALL BUSINESS GRANT
Eden District Council,http://opendatacommunities.org/id/district-council/eden,Financial Services Manager,Emergency Planning and Works,Grants and contributions,Kirkby Stephen Silver Band,40156581,07/12/2020,186475,1334,COVID 19 SMALL BUSINESS GRANT
Eden District Council,http://opendatacommunities.org/id/district-council/eden,Financial Services Manager,Emergency Planning and Works,Grants and contributions,THE RATE PAYER,40248886,07/12/2020,186476,1334,COVID 19 SMALL BUSINESS GRANT
Eden District Council,http://opendatacommunities.org/id/district-council/eden,Financial Services Manager,Emergency Planning and Works,Grants and contributions,Ullswater Navigation & Transit Co,40043852,07/12/2020,186477,1334,COVID 19 SMALL BUSINESS GRANT
Eden District Council,http://opendatacommunities.org/id/district-council/eden,Financial Services Manager,Emergency Planning and Works,Grants and contributions,Primrose Cottage B&B/Primrose Flat,40215077,07/12/2020,186478,1334,COVID 19 SMALL BUSINESS GRANT
Eden District Council,http://opendatacommunities.org/id/district-council/eden,Financial Services Manager,Emergency Planning and Works,Grants and contributions,THE RATE PAYER,40048383,07/12/2020,186479,1334,COVID 19 SMALL BUSINESS GRANT
Eden District Council,http://opendatacommunities.org/id/district-council/eden,Financial Services Manager,Emergency Planning and Works,Grants and contributions,THE RATE PAYER,40111670,07/12/2020,186480,1334,COVID 19 SMALL BUSINESS GRANT
Eden District Council,http://opendatacommunities.org/id/district-council/eden,Financial Services Manager,Emergency Planning and Works,Grants and contributions,THE RATE PAYER,40222693,07/12/2020,186481,1334,COVID 19 SMALL BUSINESS GRANT
Eden District Council,http://opendatacommunities.org/id/district-council/eden,Financial Services Manager,Emergency Planning and Works,Grants and contributions,THE RATE PAYER,40237800,07/12/2020,186482,1334,COVID 19 SMALL BUSINESS GRANT
Eden District Council,http://opendatacommunities.org/id/district-council/eden,Financial Services Manager,Emergency Planning and Works,Grants and contributions,Thacka Lea,40237282,07/12/2020,186483,1334,COVID 19 SMALL BUSINESS GRANT
Eden District Council,http://opendatacommunities.org/id/district-council/eden,Financial Services Manager,Emergency Planning and Works,Grants and contributions,Melmerby Village Hall Committee,40152329,07/12/2020,186484,1334,COVID 19 SMALL BUSINESS GRANT
Eden District Council,http://opendatacommunities.org/id/district-council/eden,Financial Services Manager,Emergency Planning and Works,Grants and contributions,Ecostay Ltd.,40200815,07/12/2020,186485,1334,COVID 19 SMALL BUSINESS GRANT
Eden District Council,http://opendatacommunities.org/id/district-council/eden,Financial Services Manager,Emergency Planning and Works,Grants and contributions,Sykeside Camp Site,40225975,07/12/2020,186486,2000,COVID 19 SMALL BUSINESS GRANT
Eden District Council,http://opendatacommunities.org/id/district-council/eden,Financial Services Manager,Emergency Planning and Works,Grants and contributions,Royal Oak Inn/45 Bongate/Graycon Hospitality,40246248,07/12/2020,186487,1334,COVID 19 SMALL BUSINESS GRANT
Eden District Council,http://opendatacommunities.org/id/district-council/eden,Financial Services Manager,Emergency Planning and Works,Grants and contributions,THE RATE PAYER,40119056,07/12/2020,186488,1334,COVID 19 SMALL BUSINESS GRANT
Eden District Council,http://opendatacommunities.org/id/district-council/eden,Financial Services Manager,Emergency Planning and Works,Grants and contributions,Bb�s gents hairstylist�s,40193054,07/12/2020,186489,1334,COVID 19 SMALL BUSINESS GRANT
Eden District Council,http://opendatacommunities.org/id/district-council/eden,Financial Services Manager,Emergency Planning and Works,Grants and contributions,MC Ferguson ( Interiors) LTD,40219420,07/12/2020,186490,2000,COVID 19 SMALL BUSINESS GRANT
Eden District Council,http://opendatacommunities.org/id/district-council/eden,Environmental Services,Other Environmental Health,Supplies general,RICHARDSONS FUNERAL DIRECTORS,RIC022,11/12/2020,185699,1293,FUNERAL COSTS
Eden District Council,http://opendatacommunities.org/id/district-council/eden,Environmental Services,1996 Mandatory Renovation Grants,Capital grants,THE RATE PAYER,WAL048,11/12/2020,185759,1219,FIN PAYMENT GRANT REF 200028
Eden District Council,http://opendatacommunities.org/id/district-council/eden,Technical Services Manager,Parks and Open Spaces,Grounds Maintenance Contract Bed Plants,J PARKER DUTCH BULB (W/S) LTD,PAR042,11/12/2020,185853,948,TULIPS
Eden District Council,http://opendatacommunities.org/id/district-council/eden,Revenue/Benefits Manager,Council Tax Benefits,Software � maintenance,SOUTH LAKELAND DISTRICT COUNCIL,SOU006,11/12/2020,183570,6766,COVID 19 SOFTWARE
Eden District Council,http://opendatacommunities.org/id/district-council/eden,Financial Services Manager,Financial Services,Balance brought forward BS,ARLINGCLOSE LTD,ARL002,11/12/2020,184822,10650,TREASURY ADVISORY SERVICES
Eden District Council,http://opendatacommunities.org/id/district-council/eden,Technical Services Manager,Footway Lighting,FL  Contract,AMEY PLC,TFE001,11/12/2020,185703,2735.16,FL 6/2020
Eden District Council,http://opendatacommunities.org/id/district-council/eden,Technical Services Manager,Footway Lighting,FL  Contract,AMEY PLC,TFE001,11/12/2020,185704,2735.16,CERT NO FL 5/2020
Eden District Council,http://opendatacommunities.org/id/district-council/eden,Revenue/Benefits Manager,Central Expenses,Contribution by EDC,PENRITH INDUSTRIAL BID COMPANY LTD,PEN087,11/12/2020,185741,25000,monies collected
Eden District Council,http://opendatacommunities.org/id/district-council/eden,Technical Services Manager,Land Charges,Professional fees,CUMBRIA COUNTY COUNCIL,CCC002,11/12/2020,185743,1306,JULY20 SEARCHES
Eden District Council,http://opendatacommunities.org/id/district-council/eden,Technical Services Manager,Land Charges,Professional fees,CUMBRIA COUNTY COUNCIL,CCC002,11/12/2020,185744,1471,SEPT20 SEARCHES
Eden District Council,http://opendatacommunities.org/id/district-council/eden,Technical Services Manager,Land Charges,Professional fees,CUMBRIA COUNTY COUNCIL,CCC002,11/12/2020,185745,633,JUNE20 SEARCHES
Eden District Council,http://opendatacommunities.org/id/district-council/eden,Technical Services Manager,Land Charges,Professional fees,CUMBRIA COUNTY COUNCIL,CCC002,11/12/2020,185746,1085,AUG20 SEARCHES
Eden District Council,http://opendatacommunities.org/id/district-council/eden,Commercial Services Manager,Economic Development and Promotion,Grants and contributions,ATKINSON BUILDING CONTRACTORS,ATK009,11/12/2020,185751,500,1ST APPRENTICE PAYMENT
Eden District Council,http://opendatacommunities.org/id/district-council/eden,Transformation & Customers Head of,Corporate Services,Software � maintenance,NLA MEDIA ACCESS LTD,NLA001,11/12/2020,185855,1217.17,GRANT OF COPYRIGHT LICENCE
Eden District Council,http://opendatacommunities.org/id/district-council/eden,Technical Services Manager,Street Cleaning,Street Cleaning Contract,AMEY PLC,TFE001,11/12/2020,185865,5508.86,CERT SC89
Eden District Council,http://opendatacommunities.org/id/district-council/eden,Technical Services Manager,Recycling,Supplies general,CUMBRIA WASTE RECYCLING LTD,CUM022,11/12/2020,186285,4933.37,KERBSIDE CONTRACT-ONE OFF CHARGE
Eden District Council,http://opendatacommunities.org/id/district-council/eden,Financial Services Manager,Emergency Planning and Works,Professional fees,J2BTC LTD,J2B001,11/12/2020,186287,525,TIME SHEET W/E 27.11.20
Eden District Council,http://opendatacommunities.org/id/district-council/eden,Commercial Services Manager,Community Development & Engagement,Community Fund,PLUMPTON CHILDRENS TREAT COMMITTEE,PLU005,11/12/2020,186298,2500,2ND / FINAL INSTALLMENT EC FUND
Eden District Council,http://opendatacommunities.org/id/district-council/eden,Revenue/Benefits Manager,Revenue & Benefits,Postages,ROYAL MAIL NW,ROY001,11/12/2020,186299,1059.62,1ST AND 2ND CLASS MAIL
Eden District Council,http://opendatacommunities.org/id/district-council/eden,Revenue/Benefits Manager,Revenue & Benefits,Subscriptions & levies,SOUTH LAKELAND DISTRICT COUNCIL,SOU006,11/12/2020,186316,650,END OF YEAR WEBINARS
Eden District Council,http://opendatacommunities.org/id/district-council/eden,Chief Executive's,One Eden Programme,Agency Staff,MBSP CONSULTANCY LTD,MBS001,11/12/2020,186318,7800,ONE EDEN NOV 20
Eden District Council,http://opendatacommunities.org/id/district-council/eden,Financial Services Manager,Financial Services,Balance brought forward BS,ACCESS SYTEMS (UK) LTD,ACC012,11/12/2020,186321,4995,ANNUAL SUBSCRIPTION 01.1.21-31.12.21
Eden District Council,http://opendatacommunities.org/id/district-council/eden,Commercial Services Manager,Community Development & Engagement,Community Fund,HESKET PARISH COUNCIL,HES001,11/12/2020,186322,1250,2ND /FINAL INSTALLMENT EC FUND GRANT
Eden District Council,http://opendatacommunities.org/id/district-council/eden,Environmental Services,Housing Delivery,Community Housing Fund - Patterdale,PATTERDALE PARISH COMMUNITY LAND TRUST,PAT018,11/12/2020,186323,20000,PART DRAW-DOWN GRANT
Eden District Council,http://opendatacommunities.org/id/district-council/eden,Transformation & Customers Head of,Corporate Services,Agency Staff,INTRO PR . SOCIAL MEDIA . CONTENT,INT014,11/12/2020,186324,3744.96,PR & EXPENSES - FACEBOOK POSTS
Eden District Council,http://opendatacommunities.org/id/district-council/eden,Commercial Services Manager,Economic Development and Promotion,Professional fees,APPLEBY TOWN COUNCIL,APP001,11/12/2020,186325,25815.83,PSICA GRANT
Eden District Council,http://opendatacommunities.org/id/district-council/eden,Commercial Services Manager,Economic Development and Promotion,Professional fees,APPLEBY TOWN COUNCIL,APP001,11/12/2020,186327,1755,PISCA GRANT PUBLIC HALL
Eden District Council,http://opendatacommunities.org/id/district-council/eden,Legal Services Manager,Corporate Costs,Year End Valuation Fees,WALTON GOODLAND LTD,WAL008,11/12/2020,186329,955.5,VALUATION ASSETS
Eden District Council,http://opendatacommunities.org/id/district-council/eden,Chief Executive's,One Eden Programme,Professional fees,WALTON GOODLAND LTD,WAL008,11/12/2020,186330,1242.5,mansion house study
Eden District Council,http://opendatacommunities.org/id/district-council/eden,Financial Services Manager,Financial Services,Internal Audit,TIAA LTD,TIA001,08/12/2020,184679,2950,CYBER SECURITY / FRAUD
Eden District Council,http://opendatacommunities.org/id/district-council/eden,Commercial Services Manager,Tourism Promotion,Marketing,BUCKET  & SPADE MEDIA LTD,BUC010,08/12/2020,184806,4450,2021 VISIT EDEN GUIDE
Eden District Council,http://opendatacommunities.org/id/district-council/eden,Financial Services Manager,Financial Services,Internal Audit,TIAA LTD,TIA001,08/12/2020,184807,-2950,CREDIT RE SYBER SECURITY INVOICE
Eden District Council,http://opendatacommunities.org/id/district-council/eden,Commercial Services Manager,Tourism Promotion,Marketing,BUCKET  & SPADE MEDIA LTD,BUC010,08/12/2020,184924,-4450,CREDIT NOTE RE 2021 VISIT EDEN INVOICE
Eden District Council,http://opendatacommunities.org/id/district-council/eden,Financial Services Manager,Emergency Planning and Works,Grants and contributions,appleby business services,40250414,09/12/2020,186546,1334,COVID 19 SMALL BUSINESS GRANT
Eden District Council,http://opendatacommunities.org/id/district-council/eden,Financial Services Manager,Emergency Planning and Works,Grants and contributions,BH Holistics,42001302,09/12/2020,186547,1334,COVID 19 SMALL BUSINESS GRANT
Eden District Council,http://opendatacommunities.org/id/district-council/eden,Financial Services Manager,Emergency Planning and Works,Grants and contributions,D broughton ltd,40244372,09/12/2020,186548,1334,COVID 19 SMALL BUSINESS GRANT
Eden District Council,http://opendatacommunities.org/id/district-council/eden,Financial Services Manager,Emergency Planning and Works,Grants and contributions,THE RATE PAYER,42001304,09/12/2020,186549,1334,COVID 19 SMALL BUSINESS GRANT
Eden District Council,http://opendatacommunities.org/id/district-council/eden,Financial Services Manager,Emergency Planning and Works,Grants and contributions,Peaks in Profile,40240899,09/12/2020,186550,1334,COVID 19 SMALL BUSINESS GRANT
Eden District Council,http://opendatacommunities.org/id/district-council/eden,Financial Services Manager,Emergency Planning and Works,Grants and contributions,ACT Business Development,42001319,09/12/2020,186551,1334,COVID 19 SMALL BUSINESS GRANT
Eden District Council,http://opendatacommunities.org/id/district-council/eden,Financial Services Manager,Emergency Planning and Works,Grants and contributions,The Health Barn,40240547,09/12/2020,186552,1334,COVID 19 SMALL BUSINESS GRANT
Eden District Council,http://opendatacommunities.org/id/district-council/eden,Financial Services Manager,Emergency Planning and Works,Grants and contributions,Carvetii coffee Ltd,40230434,09/12/2020,186553,1334,COVID 19 SMALL BUSINESS GRANT
Eden District Council,http://opendatacommunities.org/id/district-council/eden,Financial Services Manager,Emergency Planning and Works,Grants and contributions,GML Beauty,42001297,09/12/2020,186554,1334,COVID 19 SMALL BUSINESS GRANT
Eden District Council,http://opendatacommunities.org/id/district-council/eden,Financial Services Manager,Emergency Planning and Works,Grants and contributions,AM TAXI,42001320,09/12/2020,186555,1334,COVID 19 SMALL BUSINESS GRANT
Eden District Council,http://opendatacommunities.org/id/district-council/eden,Financial Services Manager,Emergency Planning and Works,Grants and contributions,Homemade by Sandra,42001328,09/12/2020,186556,1334,COVID 19 SMALL BUSINESS GRANT
Eden District Council,http://opendatacommunities.org/id/district-council/eden,Financial Services Manager,Emergency Planning and Works,Grants and contributions,MMK APPLEBY TAXIS,42001321,09/12/2020,186557,1334,COVID 19 SMALL BUSINESS GRANT
Eden District Council,http://opendatacommunities.org/id/district-council/eden,Financial Services Manager,Emergency Planning and Works,Grants and contributions,D Wappett Electrical Contractors Limited,42001332,09/12/2020,186558,1334,COVID 19 SMALL BUSINESS GRANT
Eden District Council,http://opendatacommunities.org/id/district-council/eden,Financial Services Manager,Emergency Planning and Works,Grants and contributions,THE RATE PAYER,42001303,09/12/2020,186559,1334,COVID 19 SMALL BUSINESS GRANT
Eden District Council,http://opendatacommunities.org/id/district-council/eden,Financial Services Manager,Emergency Planning and Works,Grants and contributions,Keepers Cottage B & B,42001296,09/12/2020,186560,1334,COVID 19 SMALL BUSINESS GRANT
Eden District Council,http://opendatacommunities.org/id/district-council/eden,Financial Services Manager,Emergency Planning and Works,Grants and contributions,Steve Lewis Taxis,42001318,09/12/2020,186561,1334,COVID 19 SMALL BUSINESS GRANT
Eden District Council,http://opendatacommunities.org/id/district-council/eden,Financial Services Manager,Emergency Planning and Works,Grants and contributions, Penrith Taxis,42001329,09/12/2020,186562,1334,COVID 19 SMALL BUSINESS GRANT
Eden District Council,http://opendatacommunities.org/id/district-council/eden,Financial Services Manager,Emergency Planning and Works,Grants and contributions,Rebels Hide,42001299,09/12/2020,186563,1334,COVID 19 SMALL BUSINESS GRANT
Eden District Council,http://opendatacommunities.org/id/district-council/eden,Financial Services Manager,Emergency Planning and Works,Grants and contributions,Rising sun holiday park ltd,42001331,09/12/2020,186564,1334,COVID 19 SMALL BUSINESS GRANT
Eden District Council,http://opendatacommunities.org/id/district-council/eden,Financial Services Manager,Emergency Planning and Works,Grants and contributions,Keith's Kab,42001301,09/12/2020,186565,1334,COVID 19 SMALL BUSINESS GRANT
Eden District Council,http://opendatacommunities.org/id/district-council/eden,Financial Services Manager,Emergency Planning and Works,Grants and contributions,THE RATE PAYER,42001298,09/12/2020,186566,1334,COVID 19 SMALL BUSINESS GRANT
Eden District Council,http://opendatacommunities.org/id/district-council/eden,Financial Services Manager,Emergency Planning and Works,Grants and contributions,Hoskins handyman services,42001308,09/12/2020,186567,1334,COVID 19 SMALL BUSINESS GRANT
Eden District Council,http://opendatacommunities.org/id/district-council/eden,Financial Services Manager,Emergency Planning and Works,Grants and contributions,acclaim taxis,42001322,09/12/2020,186568,1334,COVID 19 SMALL BUSINESS GRANT
Eden District Council,http://opendatacommunities.org/id/district-council/eden,Financial Services Manager,Emergency Planning and Works,Grants and contributions,The house of hair & beauty,42001300,09/12/2020,186569,1334,COVID 19 SMALL BUSINESS GRANT
Eden District Council,http://opendatacommunities.org/id/district-council/eden,Financial Services Manager,Emergency Planning and Works,Grants and contributions,THE RATE PAYER,42001307,09/12/2020,186570,1334,COVID 19 SMALL BUSINESS GRANT
Eden District Council,http://opendatacommunities.org/id/district-council/eden,Financial Services Manager,Emergency Planning and Works,Grants and contributions,Lortons catering,42001311,09/12/2020,186571,1334,COVID 19 SMALL BUSINESS GRANT
Eden District Council,http://opendatacommunities.org/id/district-council/eden,Financial Services Manager,Emergency Planning and Works,Grants and contributions,Clover Leaf Taxis,42001327,09/12/2020,186572,1334,COVID 19 SMALL BUSINESS GRANT
Eden District Council,http://opendatacommunities.org/id/district-council/eden,Financial Services Manager,Emergency Planning and Works,Grants and contributions,THE RATE PAYER,42001315,09/12/2020,186573,1334,COVID 19 SMALL BUSINESS GRANT
Eden District Council,http://opendatacommunities.org/id/district-council/eden,Financial Services Manager,Emergency Planning and Works,Grants and contributions,Paul�s Taxis,42001317,09/12/2020,186574,1334,COVID 19 SMALL BUSINESS GRANT
Eden District Council,http://opendatacommunities.org/id/district-council/eden,Financial Services Manager,Emergency Planning and Works,Grants and contributions,Kdcourierservices,42001330,09/12/2020,186575,1334,COVID 19 SMALL BUSINESS GRANT
Eden District Council,http://opendatacommunities.org/id/district-council/eden,Financial Services Manager,Emergency Planning and Works,Grants and contributions,THE RATE PAYER,42001309,09/12/2020,186576,1334,COVID 19 SMALL BUSINESS GRANT
Eden District Council,http://opendatacommunities.org/id/district-council/eden,Financial Services Manager,Emergency Planning and Works,Grants and contributions,Hale Racing,42001323,09/12/2020,186577,1334,COVID 19 SMALL BUSINESS GRANT
Eden District Council,http://opendatacommunities.org/id/district-council/eden,Financial Services Manager,Emergency Planning and Works,Grants and contributions,Lakeland Foods Limited,42001305,09/12/2020,186578,1334,COVID 19 SMALL BUSINESS GRANT
Eden District Council,http://opendatacommunities.org/id/district-council/eden,Financial Services Manager,Emergency Planning and Works,Grants and contributions,Ashbank Hospitality,42001306,09/12/2020,186579,1334,COVID 19 SMALL BUSINESS GRANT
Eden District Council,http://opendatacommunities.org/id/district-council/eden,Financial Services Manager,Emergency Planning and Works,Grants and contributions,Step-In-Time School of Dance,42001325,09/12/2020,186580,1334,COVID 19 SMALL BUSINESS GRANT
Eden District Council,http://opendatacommunities.org/id/district-council/eden,Financial Services Manager,Emergency Planning and Works,Grants and contributions,Shaz Taxi,42001310,09/12/2020,186581,1334,COVID 19 SMALL BUSINESS GRANT
Eden District Council,http://opendatacommunities.org/id/district-council/eden,Financial Services Manager,Emergency Planning and Works,Grants and contributions,Jenny's Cleaning Services,42001326,09/12/2020,186582,1334,COVID 19 SMALL BUSINESS GRANT
Eden District Council,http://opendatacommunities.org/id/district-council/eden,Financial Services Manager,Emergency Planning and Works,Grants and contributions,Beaconsportsltd,42001314,09/12/2020,186583,1334,COVID 19 SMALL BUSINESS GRANT
Eden District Council,http://opendatacommunities.org/id/district-council/eden,Financial Services Manager,Emergency Planning and Works,Grants and contributions,Abbeytaxis,42001316,09/12/2020,186584,1334,COVID 19 SMALL BUSINESS GRANT
Eden District Council,http://opendatacommunities.org/id/district-council/eden,Financial Services Manager,Emergency Planning and Works,Grants and contributions,Town end equestrian livery,42001324,09/12/2020,186585,1334,COVID 19 SMALL BUSINESS GRANT
Eden District Council,http://opendatacommunities.org/id/district-council/eden,Financial Services Manager,Emergency Planning and Works,Grants and contributions,THE RATE PAYER,42001312,09/12/2020,186586,1334,COVID 19 SMALL BUSINESS GRANT
Eden District Council,http://opendatacommunities.org/id/district-council/eden,Financial Services Manager,Emergency Planning and Works,Grants and contributions,THE RATE PAYER,42001313,09/12/2020,186587,1334,COVID 19 SMALL BUSINESS GRANT
Eden District Council,http://opendatacommunities.org/id/district-council/eden,Financial Services Manager,Emergency Planning and Works,Grants and contributions,THE RATE PAYER,42001295,09/12/2020,186588,1334,COVID 19 SMALL BUSINESS GRANT
Eden District Council,http://opendatacommunities.org/id/district-council/eden,Financial Services Manager,Emergency Planning and Works,Grants and contributions,THE RATE PAYER,40028020,09/12/2020,186589,2000,COVID 19 SMALL BUSINESS GRANT
Eden District Council,http://opendatacommunities.org/id/district-council/eden,Financial Services Manager,Emergency Planning and Works,Grants and contributions,Clifton Village Hall,40028495,09/12/2020,186590,1334,COVID 19 SMALL BUSINESS GRANT
Eden District Council,http://opendatacommunities.org/id/district-council/eden,Financial Services Manager,Emergency Planning and Works,Grants and contributions,Lowther Parish Hall,40029139,09/12/2020,186591,1334,COVID 19 SMALL BUSINESS GRANT
Eden District Council,http://opendatacommunities.org/id/district-council/eden,Financial Services Manager,Emergency Planning and Works,Grants and contributions,Shap Memorial Hall Management Committee,40029306,09/12/2020,186592,1334,COVID 19 SMALL BUSINESS GRANT
Eden District Council,http://opendatacommunities.org/id/district-council/eden,Financial Services Manager,Emergency Planning and Works,Grants and contributions,ALSTON BOWLING CLUB,40030566,09/12/2020,186593,1334,COVID 19 SMALL BUSINESS GRANT
Eden District Council,http://opendatacommunities.org/id/district-council/eden,Financial Services Manager,Emergency Planning and Works,Grants and contributions,North Stainmore Parish Hall,40033404,09/12/2020,186594,1334,COVID 19 SMALL BUSINESS GRANT
Eden District Council,http://opendatacommunities.org/id/district-council/eden,Financial Services Manager,Emergency Planning and Works,Grants and contributions,The Old School OusbyCA10 1QA,40035103,09/12/2020,186595,1334,COVID 19 SMALL BUSINESS GRANT
Eden District Council,http://opendatacommunities.org/id/district-council/eden,Financial Services Manager,Emergency Planning and Works,Grants and contributions,Village Hall,40036014,09/12/2020,186596,1334,COVID 19 SMALL BUSINESS GRANT
Eden District Council,http://opendatacommunities.org/id/district-council/eden,Financial Services Manager,Emergency Planning and Works,Grants and contributions,Glenridding Public Hall,40036434,09/12/2020,186597,1334,COVID 19 SMALL BUSINESS GRANT
Eden District Council,http://opendatacommunities.org/id/district-council/eden,Financial Services Manager,Emergency Planning and Works,Grants and contributions,Gill Head Farm caravan site,40037369,09/12/2020,186598,2000,COVID 19 SMALL BUSINESS GRANT
Eden District Council,http://opendatacommunities.org/id/district-council/eden,Financial Services Manager,Emergency Planning and Works,Grants and contributions,THE RATE PAYER,40037437,09/12/2020,186599,1334,COVID 19 SMALL BUSINESS GRANT
Eden District Council,http://opendatacommunities.org/id/district-council/eden,Financial Services Manager,Emergency Planning and Works,Grants and contributions,Kirkby Thore memorial hall and recreation,40038492,09/12/2020,186600,1334,COVID 19 SMALL BUSINESS GRANT
Eden District Council,http://opendatacommunities.org/id/district-council/eden,Financial Services Manager,Emergency Planning and Works,Grants and contributions,PENRITH GUIDE ASSOCIATION,40039112,09/12/2020,186601,1334,COVID 19 SMALL BUSINESS GRANT
Eden District Council,http://opendatacommunities.org/id/district-council/eden,Financial Services Manager,Emergency Planning and Works,Grants and contributions,Kirkby Stephen Cricket Club,40039198,09/12/2020,186602,1334,COVID 19 SMALL BUSINESS GRANT
Eden District Council,http://opendatacommunities.org/id/district-council/eden,Financial Services Manager,Emergency Planning and Works,Grants and contributions,Bowber Head Caravan Site,40039334,09/12/2020,186603,1334,COVID 19 SMALL BUSINESS GRANT
Eden District Council,http://opendatacommunities.org/id/district-council/eden,Financial Services Manager,Emergency Planning and Works,Grants and contributions,Skirwith Village Hall Trustees,40039983,09/12/2020,186604,1334,COVID 19 SMALL BUSINESS GRANT
Eden District Council,http://opendatacommunities.org/id/district-council/eden,Financial Services Manager,Emergency Planning and Works,Grants and contributions,White Horse Caravan park,40040037,09/12/2020,186605,1334,COVID 19 SMALL BUSINESS GRANT
Eden District Council,http://opendatacommunities.org/id/district-council/eden,Financial Services Manager,Emergency Planning and Works,Grants and contributions,Ivegill Village Hall Committee,40040136,09/12/2020,186606,1334,COVID 19 SMALL BUSINESS GRANT
Eden District Council,http://opendatacommunities.org/id/district-council/eden,Financial Services Manager,Emergency Planning and Works,Grants and contributions,MILBURN VILLAGE HALL,40040303,09/12/2020,186607,1334,COVID 19 SMALL BUSINESS GRANT
Eden District Council,http://opendatacommunities.org/id/district-council/eden,Financial Services Manager,Emergency Planning and Works,Grants and contributions,Waterside Farm,40040969,09/12/2020,186608,2000,COVID 19 SMALL BUSINESS GRANT
Eden District Council,http://opendatacommunities.org/id/district-council/eden,Financial Services Manager,Emergency Planning and Works,Grants and contributions,Ormside Village Hall,40041313,09/12/2020,186609,1334,COVID 19 SMALL BUSINESS GRANT
Eden District Council,http://opendatacommunities.org/id/district-council/eden,Financial Services Manager,Emergency Planning and Works,Grants and contributions,Soulby Memorial Hall Trust,40042668,09/12/2020,186610,1334,COVID 19 SMALL BUSINESS GRANT
Eden District Council,http://opendatacommunities.org/id/district-council/eden,Financial Services Manager,Emergency Planning and Works,Grants and contributions,Greystoke and District Sports Association,40043715,09/12/2020,186611,1334,COVID 19 SMALL BUSINESS GRANT
Eden District Council,http://opendatacommunities.org/id/district-council/eden,Financial Services Manager,Emergency Planning and Works,Grants and contributions,THE RATE PAYER,40044244,09/12/2020,186612,1334,COVID 19 SMALL BUSINESS GRANT
Eden District Council,http://opendatacommunities.org/id/district-council/eden,Financial Services Manager,Emergency Planning and Works,Grants and contributions,THE NICHOLLS MEMORIAL HALL,40045353,09/12/2020,186613,1334,COVID 19 SMALL BUSINESS GRANT
Eden District Council,http://opendatacommunities.org/id/district-council/eden,Financial Services Manager,Emergency Planning and Works,Grants and contributions,Nenthead Village Hall committe,40046196,09/12/2020,186614,1334,COVID 19 SMALL BUSINESS GRANT
Eden District Council,http://opendatacommunities.org/id/district-council/eden,Financial Services Manager,Emergency Planning and Works,Grants and contributions,Langwathby Village Hall,40046899,09/12/2020,186615,1334,COVID 19 SMALL BUSINESS GRANT
Eden District Council,http://opendatacommunities.org/id/district-council/eden,Financial Services Manager,Emergency Planning and Works,Grants and contributions,Armathwaite Old School Hall,40047762,09/12/2020,186616,1334,COVID 19 SMALL BUSINESS GRANT
Eden District Council,http://opendatacommunities.org/id/district-council/eden,Financial Services Manager,Emergency Planning and Works,Grants and contributions,Low Hesket Village Hall,40049195,09/12/2020,186617,1334,COVID 19 SMALL BUSINESS GRANT
Eden District Council,http://opendatacommunities.org/id/district-council/eden,Financial Services Manager,Emergency Planning and Works,Grants and contributions,Lazonby & District Swimming Pool Association Ltd,40050492,09/12/2020,186618,1334,COVID 19 SMALL BUSINESS GRANT
Eden District Council,http://opendatacommunities.org/id/district-council/eden,Financial Services Manager,Emergency Planning and Works,Grants and contributions,Crosby Ravensworth Village Hall,40051693,09/12/2020,186619,1334,COVID 19 SMALL BUSINESS GRANT
Eden District Council,http://opendatacommunities.org/id/district-council/eden,Financial Services Manager,Emergency Planning and Works,Grants and contributions,Morland Village Hall,40051853,09/12/2020,186620,1334,COVID 19 SMALL BUSINESS GRANT
Eden District Council,http://opendatacommunities.org/id/district-council/eden,Financial Services Manager,Emergency Planning and Works,Grants and contributions,Watermillock Parish Hall,40051976,09/12/2020,186621,1334,COVID 19 SMALL BUSINESS GRANT
Eden District Council,http://opendatacommunities.org/id/district-council/eden,Financial Services Manager,Emergency Planning and Works,Grants and contributions,APPLEBY BOWLING CLUB,40052351,09/12/2020,186622,1334,COVID 19 SMALL BUSINESS GRANT
Eden District Council,http://opendatacommunities.org/id/district-council/eden,Financial Services Manager,Emergency Planning and Works,Grants and contributions,Greystoke Village Hall,40052979,09/12/2020,186623,1334,COVID 19 SMALL BUSINESS GRANT
Eden District Council,http://opendatacommunities.org/id/district-council/eden,Financial Services Manager,Emergency Planning and Works,Grants and contributions,TEMPLE SOWERBY MEMORIAL HALL,40053118,09/12/2020,186624,1334,COVID 19 SMALL BUSINESS GRANT
Eden District Council,http://opendatacommunities.org/id/district-council/eden,Financial Services Manager,Emergency Planning and Works,Grants and contributions,PENRITH FRIARS BOWLING CLUB,40053514,09/12/2020,186625,1334,COVID 19 SMALL BUSINESS GRANT
Eden District Council,http://opendatacommunities.org/id/district-council/eden,Financial Services Manager,Emergency Planning and Works,Grants and contributions,Holly Cottage caravan site,40053828,09/12/2020,186626,1334,COVID 19 SMALL BUSINESS GRANT
Eden District Council,http://opendatacommunities.org/id/district-council/eden,Financial Services Manager,Emergency Planning and Works,Grants and contributions,Parkin Memorial Hall,40053842,09/12/2020,186627,1334,COVID 19 SMALL BUSINESS GRANT
Eden District Council,http://opendatacommunities.org/id/district-council/eden,Financial Services Manager,Emergency Planning and Works,Grants and contributions,Penrith 2nd Scout Group,40054746,09/12/2020,186628,1334,COVID 19 SMALL BUSINESS GRANT
Eden District Council,http://opendatacommunities.org/id/district-council/eden,Financial Services Manager,Emergency Planning and Works,Grants and contributions,KIRKBY STEPHEN BOWLING CLUB,40055459,09/12/2020,186629,1334,COVID 19 SMALL BUSINESS GRANT
Eden District Council,http://opendatacommunities.org/id/district-council/eden,Financial Services Manager,Emergency Planning and Works,Grants and contributions,THE RATE PAYER,40055534,09/12/2020,186630,1334,COVID 19 SMALL BUSINESS GRANT
Eden District Council,http://opendatacommunities.org/id/district-council/eden,Financial Services Manager,Emergency Planning and Works,Grants and contributions,Brough Memorial Hall,40056254,09/12/2020,186631,1334,COVID 19 SMALL BUSINESS GRANT
Eden District Council,http://opendatacommunities.org/id/district-council/eden,Financial Services Manager,Emergency Planning and Works,Grants and contributions,Murton Institute,40056322,09/12/2020,186632,1334,COVID 19 SMALL BUSINESS GRANT
Eden District Council,http://opendatacommunities.org/id/district-council/eden,Financial Services Manager,Emergency Planning and Works,Grants and contributions,Middle Bank End Caravan Park,40056667,09/12/2020,186633,1334,COVID 19 SMALL BUSINESS GRANT
Eden District Council,http://opendatacommunities.org/id/district-council/eden,Financial Services Manager,Emergency Planning and Works,Grants and contributions,lake district ski club,40057196,09/12/2020,186634,1334,COVID 19 SMALL BUSINESS GRANT
Eden District Council,http://opendatacommunities.org/id/district-council/eden,Financial Services Manager,Emergency Planning and Works,Grants and contributions,Kirkby thore recreation ground,40057271,09/12/2020,186635,1334,COVID 19 SMALL BUSINESS GRANT
Eden District Council,http://opendatacommunities.org/id/district-council/eden,Financial Services Manager,Emergency Planning and Works,Grants and contributions,Uter Pendragon Lodge 3481,40057431,09/12/2020,186636,1334,COVID 19 SMALL BUSINESS GRANT
Eden District Council,http://opendatacommunities.org/id/district-council/eden,Financial Services Manager,Emergency Planning and Works,Grants and contributions,Kirkoswald Football Club,40057448,09/12/2020,186637,1334,COVID 19 SMALL BUSINESS GRANT
Eden District Council,http://opendatacommunities.org/id/district-council/eden,Financial Services Manager,Emergency Planning and Works,Grants and contributions,sockenber caravan site,40113119,09/12/2020,186638,2000,COVID 19 SMALL BUSINESS GRANT
Eden District Council,http://opendatacommunities.org/id/district-council/eden,Financial Services Manager,Emergency Planning and Works,Grants and contributions,Patterdale Hall Estate Ltd,40124461,09/12/2020,186639,1334,COVID 19 SMALL BUSINESS GRANT
Eden District Council,http://opendatacommunities.org/id/district-council/eden,Financial Services Manager,Emergency Planning and Works,Grants and contributions,Certificated Location Riverside.,40124522,09/12/2020,186640,1334,COVID 19 SMALL BUSINESS GRANT
Eden District Council,http://opendatacommunities.org/id/district-council/eden,Financial Services Manager,Emergency Planning and Works,Grants and contributions,Edenhall & Langwathby Sports and Recreation Field,40125068,09/12/2020,186641,1334,COVID 19 SMALL BUSINESS GRANT
Eden District Council,http://opendatacommunities.org/id/district-council/eden,Financial Services Manager,Emergency Planning and Works,Grants and contributions,Knock Mission Room Committee,40135645,09/12/2020,186642,1334,COVID 19 SMALL BUSINESS GRANT
Eden District Council,http://opendatacommunities.org/id/district-council/eden,Financial Services Manager,Emergency Planning and Works,Grants and contributions,CLIBURN PUBLIC HALL COMMITTEE,40143233,09/12/2020,186643,1334,COVID 19 SMALL BUSINESS GRANT
Eden District Council,http://opendatacommunities.org/id/district-council/eden,Financial Services Manager,Emergency Planning and Works,Grants and contributions,THE RATE PAYER,40152596,09/12/2020,186644,1334,COVID 19 SMALL BUSINESS GRANT
Eden District Council,http://opendatacommunities.org/id/district-council/eden,Financial Services Manager,Emergency Planning and Works,Grants and contributions,THE RATE PAYER,40160108,09/12/2020,186645,2000,COVID 19 SMALL BUSINESS GRANT
Eden District Council,http://opendatacommunities.org/id/district-council/eden,Financial Services Manager,Emergency Planning and Works,Grants and contributions,Grassgill caravan site,40162159,09/12/2020,186646,1334,COVID 19 SMALL BUSINESS GRANT
Eden District Council,http://opendatacommunities.org/id/district-council/eden,Financial Services Manager,Emergency Planning and Works,Grants and contributions,Foxfield leisure limited,40164599,09/12/2020,186647,1334,COVID 19 SMALL BUSINESS GRANT
Eden District Council,http://opendatacommunities.org/id/district-council/eden,Financial Services Manager,Emergency Planning and Works,Grants and contributions,Highgate Farm,40165455,09/12/2020,186648,1334,COVID 19 SMALL BUSINESS GRANT
Eden District Council,http://opendatacommunities.org/id/district-council/eden,Financial Services Manager,Emergency Planning and Works,Grants and contributions,Edenside Caravan Park,40168744,09/12/2020,186649,1334,COVID 19 SMALL BUSINESS GRANT
Eden District Council,http://opendatacommunities.org/id/district-council/eden,Financial Services Manager,Emergency Planning and Works,Grants and contributions,Garrigill Village Hall Trustees,40186568,09/12/2020,186650,1334,COVID 19 SMALL BUSINESS GRANT
Eden District Council,http://opendatacommunities.org/id/district-council/eden,Financial Services Manager,Emergency Planning and Works,Grants and contributions,THE RATE PAYER,40190314,09/12/2020,186651,1334,COVID 19 SMALL BUSINESS GRANT
Eden District Council,http://opendatacommunities.org/id/district-council/eden,Financial Services Manager,Emergency Planning and Works,Grants and contributions,Alston Moor Fitness Club LTD,40192433,09/12/2020,186652,1334,COVID 19 SMALL BUSINESS GRANT
Eden District Council,http://opendatacommunities.org/id/district-council/eden,Financial Services Manager,Emergency Planning and Works,Grants and contributions,THE RATE PAYER,40194583,09/12/2020,186653,1334,COVID 19 SMALL BUSINESS GRANT
Eden District Council,http://opendatacommunities.org/id/district-council/eden,Financial Services Manager,Emergency Planning and Works,Grants and contributions,Ravenstonedale Community & Heritage Centre,40202057,09/12/2020,186654,1334,COVID 19 SMALL BUSINESS GRANT
Eden District Council,http://opendatacommunities.org/id/district-council/eden,Financial Services Manager,Emergency Planning and Works,Grants and contributions,Maulds Meaburn Village Institute,40202071,09/12/2020,186655,1334,COVID 19 SMALL BUSINESS GRANT
Eden District Council,http://opendatacommunities.org/id/district-council/eden,Financial Services Manager,Emergency Planning and Works,Grants and contributions,Steeles Mill,40206707,09/12/2020,186656,1334,COVID 19 SMALL BUSINESS GRANT
Eden District Council,http://opendatacommunities.org/id/district-council/eden,Financial Services Manager,Emergency Planning and Works,Grants and contributions,THE RATE PAYER,40211563,09/12/2020,186657,1334,COVID 19 SMALL BUSINESS GRANT
Eden District Council,http://opendatacommunities.org/id/district-council/eden,Financial Services Manager,Emergency Planning and Works,Grants and contributions, Glenridding Gallery,40216100,09/12/2020,186658,1334,COVID 19 SMALL BUSINESS GRANT
Eden District Council,http://opendatacommunities.org/id/district-council/eden,Financial Services Manager,Emergency Planning and Works,Grants and contributions,Shap Community CIO,40219062,09/12/2020,186659,1334,COVID 19 SMALL BUSINESS GRANT
Eden District Council,http://opendatacommunities.org/id/district-council/eden,Financial Services Manager,Emergency Planning and Works,Grants and contributions,Village Hall Warcop Appleby-in-Westmorland CA16 6NX,40219833,09/12/2020,186660,1334,COVID 19 SMALL BUSINESS GRANT
Eden District Council,http://opendatacommunities.org/id/district-council/eden,Financial Services Manager,Emergency Planning and Works,Grants and contributions,THE RATE PAYER,40226077,09/12/2020,186661,1334,COVID 19 SMALL BUSINESS GRANT
Eden District Council,http://opendatacommunities.org/id/district-council/eden,Financial Services Manager,Emergency Planning and Works,Grants and contributions,Appleby Hub Community Centre (Right2Work CIC),40226091,09/12/2020,186662,1334,COVID 19 SMALL BUSINESS GRANT
Eden District Council,http://opendatacommunities.org/id/district-council/eden,Financial Services Manager,Emergency Planning and Works,Grants and contributions,Right2Work CIC (Bennett Room),40226145,09/12/2020,186663,1334,COVID 19 SMALL BUSINESS GRANT
Eden District Council,http://opendatacommunities.org/id/district-council/eden,Financial Services Manager,Emergency Planning and Works,Grants and contributions,Punchbowl Caravan Site,40227841,09/12/2020,186664,1334,COVID 19 SMALL BUSINESS GRANT
Eden District Council,http://opendatacommunities.org/id/district-council/eden,Financial Services Manager,Emergency Planning and Works,Grants and contributions,Pennine View LTD,40228431,09/12/2020,186665,2000,COVID 19 SMALL BUSINESS GRANT
Eden District Council,http://opendatacommunities.org/id/district-council/eden,Financial Services Manager,Emergency Planning and Works,Grants and contributions,BECKSES CARAVAN PARK LTD,40234085,09/12/2020,186666,1334,COVID 19 SMALL BUSINESS GRANT
Eden District Council,http://opendatacommunities.org/id/district-council/eden,Financial Services Manager,Emergency Planning and Works,Grants and contributions,Old School House,40235934,09/12/2020,186667,1334,COVID 19 SMALL BUSINESS GRANT
Eden District Council,http://opendatacommunities.org/id/district-council/eden,Financial Services Manager,Emergency Planning and Works,Grants and contributions,Effugium Camping Club,40238643,09/12/2020,186668,1334,COVID 19 SMALL BUSINESS GRANT
Eden District Council,http://opendatacommunities.org/id/district-council/eden,Financial Services Manager,Emergency Planning and Works,Grants and contributions,Hudgill Rigg Caravan Park,40238919,09/12/2020,186669,2000,COVID 19 SMALL BUSINESS GRANT
Eden District Council,http://opendatacommunities.org/id/district-council/eden,Financial Services Manager,Emergency Planning and Works,Grants and contributions,Orchard Hideaways Limited,40240424,09/12/2020,186670,2000,COVID 19 SMALL BUSINESS GRANT
Eden District Council,http://opendatacommunities.org/id/district-council/eden,Financial Services Manager,Emergency Planning and Works,Grants and contributions,Stainton Village Hall Committee,40240943,09/12/2020,186671,1334,COVID 19 SMALL BUSINESS GRANT
Eden District Council,http://opendatacommunities.org/id/district-council/eden,Financial Services Manager,Emergency Planning and Works,Grants and contributions,Magnus Dent,40247029,09/12/2020,186672,1334,COVID 19 SMALL BUSINESS GRANT
Eden District Council,http://opendatacommunities.org/id/district-council/eden,Financial Services Manager,Emergency Planning and Works,Grants and contributions,Certified Location The Grange Court,40247678,09/12/2020,186673,1334,COVID 19 SMALL BUSINESS GRANT
Eden District Council,http://opendatacommunities.org/id/district-council/eden,Financial Services Manager,Emergency Planning and Works,Grants and contributions,THE RATE PAYER,40247890,09/12/2020,186674,1334,COVID 19 SMALL BUSINESS GRANT
Eden District Council,http://opendatacommunities.org/id/district-council/eden,Financial Services Manager,Emergency Planning and Works,Grants and contributions,First Phoenix Ltd,40248206,09/12/2020,186675,1334,COVID 19 SMALL BUSINESS GRANT
Eden District Council,http://opendatacommunities.org/id/district-council/eden,Financial Services Manager,Emergency Planning and Works,Grants and contributions,THE RATE PAYER,40250391,09/12/2020,186676,1334,COVID 19 SMALL BUSINESS GRANT
Eden District Council,http://opendatacommunities.org/id/district-council/eden,Financial Services Manager,Emergency Planning and Works,Grants and contributions,The Reading Room,40029375,09/12/2020,186677,1334,COVID 19 SMALL BUSINESS GRANT
Eden District Council,http://opendatacommunities.org/id/district-council/eden,Financial Services Manager,Emergency Planning and Works,Grants and contributions,THE RATE PAYER,40240738,09/12/2020,186678,1334,COVID 19 SMALL BUSINESS GRANT
Eden District Council,http://opendatacommunities.org/id/district-council/eden,Financial Services Manager,Emergency Planning and Works,Grants and contributions,ASSURED REST HOTELS LTD,40169822,09/12/2020,186679,3000,COVID 19 SMALL BUSINESS GRANT
Eden District Council,http://opendatacommunities.org/id/district-council/eden,Financial Services Manager,Emergency Planning and Works,Grants and contributions,Cobalt Consultancy Services Ltd,40249612,09/12/2020,186680,1334,COVID 19 SMALL BUSINESS GRANT
Eden District Council,http://opendatacommunities.org/id/district-council/eden,Financial Services Manager,Emergency Planning and Works,Grants and contributions,The Brunswick Yard ltd,40221997,09/12/2020,186681,1334,COVID 19 SMALL BUSINESS GRANT
Eden District Council,http://opendatacommunities.org/id/district-council/eden,Financial Services Manager,Emergency Planning and Works,Grants and contributions,THE RATE PAYER,40246026,09/12/2020,186682,1334,COVID 19 SMALL BUSINESS GRANT
Eden District Council,http://opendatacommunities.org/id/district-council/eden,Financial Services Manager,Emergency Planning and Works,Grants and contributions,THE RATE PAYER,40230526,09/12/2020,186683,1334,COVID 19 SMALL BUSINESS GRANT
Eden District Council,http://opendatacommunities.org/id/district-council/eden,Financial Services Manager,Emergency Planning and Works,Grants and contributions,THE RATE PAYER,40170501,09/12/2020,186684,1334,COVID 19 SMALL BUSINESS GRANT
Eden District Council,http://opendatacommunities.org/id/district-council/eden,Financial Services Manager,Emergency Planning and Works,Grants and contributions,Glenwood House Ltd,40250070,09/12/2020,186685,1334,COVID 19 SMALL BUSINESS GRANT
Eden District Council,http://opendatacommunities.org/id/district-council/eden,Financial Services Manager,Emergency Planning and Works,Grants and contributions,Enhance Hair & Beauty,40157393,09/12/2020,186686,1334,COVID 19 SMALL BUSINESS GRANT
Eden District Council,http://opendatacommunities.org/id/district-council/eden,Financial Services Manager,Emergency Planning and Works,Grants and contributions,Silver Sweets,40194637,09/12/2020,186687,1334,COVID 19 SMALL BUSINESS GRANT
Eden District Council,http://opendatacommunities.org/id/district-council/eden,Financial Services Manager,Emergency Planning and Works,Grants and contributions,Buttercup,40246347,09/12/2020,186688,1334,COVID 19 SMALL BUSINESS GRANT
Eden District Council,http://opendatacommunities.org/id/district-council/eden,Financial Services Manager,Emergency Planning and Works,Grants and contributions,Debonair 5poets walk,40208086,09/12/2020,186689,1334,COVID 19 SMALL BUSINESS GRANT
Eden District Council,http://opendatacommunities.org/id/district-council/eden,Financial Services Manager,Emergency Planning and Works,Grants and contributions,Heart and Soul,40206806,09/12/2020,186690,1334,COVID 19 SMALL BUSINESS GRANT
Eden District Council,http://opendatacommunities.org/id/district-council/eden,Financial Services Manager,Emergency Planning and Works,Grants and contributions,THE RATE PAYER,40223863,09/12/2020,186691,1334,COVID 19 SMALL BUSINESS GRANT
Eden District Council,http://opendatacommunities.org/id/district-council/eden,Financial Services Manager,Emergency Planning and Works,Grants and contributions,Mere Croft,40224941,09/12/2020,186692,1334,COVID 19 SMALL BUSINESS GRANT
Eden District Council,http://opendatacommunities.org/id/district-council/eden,Financial Services Manager,Emergency Planning and Works,Grants and contributions,THE RATE PAYER,40249629,09/12/2020,186693,1334,COVID 19 SMALL BUSINESS GRANT
Eden District Council,http://opendatacommunities.org/id/district-council/eden,Financial Services Manager,Emergency Planning and Works,Grants and contributions,THE RATE PAYER,40217202,09/12/2020,186694,1334,COVID 19 SMALL BUSINESS GRANT
Eden District Council,http://opendatacommunities.org/id/district-council/eden,Financial Services Manager,Emergency Planning and Works,Grants and contributions,THE RATE PAYER,40249476,09/12/2020,186695,1334,COVID 19 SMALL BUSINESS GRANT
Eden District Council,http://opendatacommunities.org/id/district-council/eden,Financial Services Manager,Emergency Planning and Works,Grants and contributions,THE RATE PAYER,40250469,09/12/2020,186696,1334,COVID 19 SMALL BUSINESS GRANT
Eden District Council,http://opendatacommunities.org/id/district-council/eden,Financial Services Manager,Emergency Planning and Works,Grants and contributions,Graham Holdings & Co Ltd,40249834,09/12/2020,186697,2000,COVID 19 SMALL BUSINESS GRANT
Eden District Council,http://opendatacommunities.org/id/district-council/eden,Financial Services Manager,Emergency Planning and Works,Grants and contributions,Far Boathouse Leeming,40208444,09/12/2020,186698,1334,COVID 19 SMALL BUSINESS GRANT
Eden District Council,http://opendatacommunities.org/id/district-council/eden,Legal Services Manager,Register of Electors,Equipment � maintenance,THE DOCUMENT MANAGEMENT GROUP LTD,DOC002,18/12/2020,184941,1700,12MONTH SCANNER SUPPORT
Eden District Council,http://opendatacommunities.org/id/district-council/eden,Financial Services Manager,Emergency Planning and Works,Grants and contributions,FORGE LEISURE UK LTD,FOR010,18/12/2020,185742,4851,pool cover
Eden District Council,http://opendatacommunities.org/id/district-council/eden,Commercial Services Manager,Museum,Museum exhibits,KAREN MACDOUGALL MA DIP ARCH,MCD001,18/12/2020,186291,625,78 KITS / CLASSROOM PACKS
Eden District Council,http://opendatacommunities.org/id/district-council/eden,Financial Services Manager,Financial Services,Balance brought forward BS,FERRET INFORMATION SYSTEMS,FER005,18/12/2020,186420,765,renovator licence
Eden District Council,http://opendatacommunities.org/id/district-council/eden,Legal Services Manager,Land Management,Planned Maintenance,AMEY PLC,TFE001,18/12/2020,186423,1173.9,the depot heras fencing
Eden District Council,http://opendatacommunities.org/id/district-council/eden,Information Technology Manager,Information Technology,IT Contracts & Maintenance,IT PROFESSIONAL SERVICES LTD,ITP001,18/12/2020,186541,6750,AGREEMENT 012 MANAGED SERVICE
Eden District Council,http://opendatacommunities.org/id/district-council/eden,Financial Services Manager,Corporate Costs,Professional fees,CIRRUS PURCHASING LTD,CIR004,18/12/2020,185854,1300,PROCUREMENT DOCUMENT UPDATES
Eden District Council,http://opendatacommunities.org/id/district-council/eden,Environmental Services,1996 Mandatory Renovation Grants,Capital grants,PPM LTD,PPM001,18/12/2020,186308,3717.5,GRANT REF 200004 FINAL PAYMENT
Eden District Council,http://opendatacommunities.org/id/district-council/eden,Commissioning & Tech Services Ass Dir,Emergency Planning and Works,Building Maintenance,AMEY PLC,TFE001,18/12/2020,186310,2864.27,VARIOUS DAILY TOILET CLEANING
Eden District Council,http://opendatacommunities.org/id/district-council/eden,Commissioning & Tech Services Ass Dir,Emergency Planning and Works,Building Maintenance,AMEY PLC,TFE001,18/12/2020,186312,943.02,ADDITIONAL CLEANING TH
Eden District Council,http://opendatacommunities.org/id/district-council/eden,Environmental Services,1996 Mandatory Renovation Grants,Capital grants,TOP NOTCH CONTRACTORS LTD,TOP003,18/12/2020,186334,4124.5,interim payment grant 190070
Eden District Council,http://opendatacommunities.org/id/district-council/eden,Technical Services Manager,Administrative Buildings,Building Maintenance,GREENFIELDS HEAT & POWER LTD,GRE035,18/12/2020,186338,1176.5,REPLACE FAN TH
Eden District Council,http://opendatacommunities.org/id/district-council/eden,Environmental Services,1996 Mandatory Renovation Grants,Capital grants,PPM LTD,PPM001,18/12/2020,186707,3347.5,fin payment grant ref 190067
Eden District Council,http://opendatacommunities.org/id/district-council/eden,Planning Policy Manager,Local Plans & Policy,Professional fees,ALLERDALE BOROUGH COUNCIL,ALL002,18/12/2020,186730,2268.75,1st installment of gtaa 2020
Eden District Council,http://opendatacommunities.org/id/district-council/eden,Commercial Services Manager,Town Centres,Promotional activity,HIGHLIGHTS PRODUCTIONS,HIG017,18/12/2020,186292,7500,GRANT RESTRIC
Eden District Council,http://opendatacommunities.org/id/district-council/eden,Financial Services Manager,Emergency Planning and Works,Grants and contributions,THE RATE PAYER,BUR043,18/12/2020,186326,2000,FLOOD RESILIENCE GRANT
Eden District Council,http://opendatacommunities.org/id/district-council/eden,Commercial Services Manager,Economic Development and Promotion,Professional fees,WALTON GOODLAND LTD,WAL008,18/12/2020,186328,2782.5,RATE FOR SURVEYOR NOV20
Eden District Council,http://opendatacommunities.org/id/district-council/eden,Technical Services Manager,Closed Church Yards,GM INSPECTIONS & MAINTENANCE,AMEY PLC,TFE001,18/12/2020,186335,17654.65,cert M-GM104
Eden District Council,http://opendatacommunities.org/id/district-council/eden,Environmental Services,Housing Delivery,Professional fees,CUMBRIA COUNTY COUNCIL,CCC002,18/12/2020,186336,30000,CONSULTANCY PENRITH PARKING
Eden District Council,http://opendatacommunities.org/id/district-council/eden,Environmental Services,1996 Mandatory Renovation Grants,Balance Sheet entry BS,RAVENSTONEDALE PARISH COUNCIL,RAV001,18/12/2020,186337,17295,FINAL INSTALLMENT SIGNATURE PROJECTS FUN
Eden District Council,http://opendatacommunities.org/id/district-council/eden,Legal Services Manager,Corporate Costs,Year End Valuation Fees,WALTON GOODLAND LTD,WAL008,18/12/2020,186341,-605.5,CREDIT NOTE RE INV 13661
Eden District Council,http://opendatacommunities.org/id/district-council/eden,Commercial Services Manager,Economic Development and Promotion,Grants and contributions,JPL PLASTERING CONTRACTORS LTD,JPL001,18/12/2020,186342,1000,1ST PAYMENT 4 APPRENTICESHIPS
Eden District Council,http://opendatacommunities.org/id/district-council/eden,Technical Services Manager,Refuse Collection,Refuse Contract Dayworks,AMEY PLC,TFE001,18/12/2020,186345,2193.18,rc99
Eden District Council,http://opendatacommunities.org/id/district-council/eden,Technical Services Manager,Administrative Buildings,Building works,APTUS UTILITIES LTD,APT001,18/12/2020,186424,5561.09,CERT 19/01/010B FOOTWAY LIGHTING
Eden District Council,http://opendatacommunities.org/id/district-council/eden,Financial Services Manager,Financial Services,Balance brought forward BS,IT PROFESSIONAL SERVICES LTD,ITP001,18/12/2020,186493,5485.71,AGREEMENT 004- MINUTE SIP
Eden District Council,http://opendatacommunities.org/id/district-council/eden,Technical Services Manager,Refuse Collection,Contract refuse collection,AMEY PLC,TFE001,18/12/2020,186536,74470.35,CERT M-RC105
Eden District Council,http://opendatacommunities.org/id/district-council/eden,Technical Services Manager,Street Cleaning,SC  CCC  Weed treatment,AMEY PLC,TFE001,18/12/2020,186537,18712.57,CERT M-SC105
Eden District Council,http://opendatacommunities.org/id/district-council/eden,Technical Services Manager,Recycling,Em Wks Storage,AMEY PLC,TFE001,18/12/2020,186538,551.12,CERT M-M&EW 105/2020
Eden District Council,http://opendatacommunities.org/id/district-council/eden,Planning Services Manager (BC),Building Regulations,Professional fees,TWEDDELL & SLATER CONSULTING ENGINEERS,TWE002,18/12/2020,186706,1080,final input -chartered eng hours
Eden District Council,http://opendatacommunities.org/id/district-council/eden,Technical Services Manager,Public Conveniences,Water charges � unmetered,WATER PLUS,UNI008,18/12/2020,186723,753.6,BLUE BELL PCS
Eden District Council,http://opendatacommunities.org/id/district-council/eden,Technical Services Manager,Footway Lighting,Electricity,NPOWER LTD,NPO001,18/12/2020,186725,3459.66,MH STREET LIGHTING
Eden District Council,http://opendatacommunities.org/id/district-council/eden,Financial Services Manager,Insurance,Insurance,JARDINE LLOYD THOMPSON UK LTD,JAR003,18/12/2020,186729,1250.07,INSURANCE PROPERTY 31.1.20-30.1.21
Eden District Council,http://opendatacommunities.org/id/district-council/eden,Technical Services Manager,Administrative Buildings,Building works,AMEY PLC,TFE001,18/12/2020,186731,-13000,contaminated soil
Eden District Council,http://opendatacommunities.org/id/district-council/eden,Technical Services Manager,Administrative Buildings,Building works,AMEY PLC,TFE001,18/12/2020,186732,-26373.09,interim inv no 13
Eden District Council,http://opendatacommunities.org/id/district-council/eden,Technical Services Manager,Administrative Buildings,Building works,AMEY PLC,TFE001,18/12/2020,186734,54711.12,final account cert no 13 the depot
Eden District Council,http://opendatacommunities.org/id/district-council/eden,Technical Services Manager,Administrative Buildings,Building works,AMEY PLC,TFE001,18/12/2020,186735,5000,the depot project managers tim
Eden District Council,http://opendatacommunities.org/id/district-council/eden,Financial Services Manager,Emergency Planning and Works,Grants and contributions,THE RATE PAYER,42001349,14/12/2020,186342,1334,COVID 19 SMALL BUSINESS GRANT
Eden District Council,http://opendatacommunities.org/id/district-council/eden,Financial Services Manager,Emergency Planning and Works,Grants and contributions,Nitro Coffee Penrith,42001347,14/12/2020,186343,1334,COVID 19 SMALL BUSINESS GRANT
Eden District Council,http://opendatacommunities.org/id/district-council/eden,Financial Services Manager,Emergency Planning and Works,Grants and contributions,Penrith Industrial BID Company,42001348,14/12/2020,186344,1334,COVID 19 SMALL BUSINESS GRANT
Eden District Council,http://opendatacommunities.org/id/district-council/eden,Financial Services Manager,Emergency Planning and Works,Grants and contributions,Castlegate Development Limited,42001351,14/12/2020,186345,1334,COVID 19 SMALL BUSINESS GRANT
Eden District Council,http://opendatacommunities.org/id/district-council/eden,Financial Services Manager,Emergency Planning and Works,Grants and contributions,Patrick James Solutions Ltd,40238025,14/12/2020,186346,1334,COVID 19 SMALL BUSINESS GRANT
Eden District Council,http://opendatacommunities.org/id/district-council/eden,Financial Services Manager,Emergency Planning and Works,Grants and contributions,THE RATE PAYER,42001343,14/12/2020,186347,1334,COVID 19 SMALL BUSINESS GRANT
Eden District Council,http://opendatacommunities.org/id/district-council/eden,Financial Services Manager,Emergency Planning and Works,Grants and contributions,1Five Events & Film,42001346,14/12/2020,186348,1334,COVID 19 SMALL BUSINESS GRANT
Eden District Council,http://opendatacommunities.org/id/district-council/eden,Financial Services Manager,Emergency Planning and Works,Grants and contributions,Beyond Fitness with Sarah,42001341,14/12/2020,186349,1334,COVID 19 SMALL BUSINESS GRANT
Eden District Council,http://opendatacommunities.org/id/district-council/eden,Financial Services Manager,Emergency Planning and Works,Grants and contributions,THE RATE PAYER,42001350,14/12/2020,186350,1334,COVID 19 SMALL BUSINESS GRANT
Eden District Council,http://opendatacommunities.org/id/district-council/eden,Financial Services Manager,Emergency Planning and Works,Grants and contributions,Quirky Workshops,42001333,14/12/2020,186351,1334,COVID 19 SMALL BUSINESS GRANT
Eden District Council,http://opendatacommunities.org/id/district-council/eden,Financial Services Manager,Emergency Planning and Works,Grants and contributions,Clubbercise with Emma,42001342,14/12/2020,186352,1334,COVID 19 SMALL BUSINESS GRANT
Eden District Council,http://opendatacommunities.org/id/district-council/eden,Financial Services Manager,Emergency Planning and Works,Grants and contributions,Roo Bannister,42001340,14/12/2020,186353,1334,COVID 19 SMALL BUSINESS GRANT
Eden District Council,http://opendatacommunities.org/id/district-council/eden,Financial Services Manager,Emergency Planning and Works,Grants and contributions,Greene Activ - Sports Therapist,42001335,14/12/2020,186354,1334,COVID 19 SMALL BUSINESS GRANT
Eden District Council,http://opendatacommunities.org/id/district-council/eden,Financial Services Manager,Emergency Planning and Works,Grants and contributions,Greene Adventures,42001336,14/12/2020,186355,1334,COVID 19 SMALL BUSINESS GRANT
Eden District Council,http://opendatacommunities.org/id/district-council/eden,Financial Services Manager,Emergency Planning and Works,Grants and contributions,Caffeine rush,42001337,14/12/2020,186356,1334,COVID 19 SMALL BUSINESS GRANT
Eden District Council,http://opendatacommunities.org/id/district-council/eden,Financial Services Manager,Emergency Planning and Works,Grants and contributions,WASTE TRANSFER SERVICES LTD,40228424,14/12/2020,186357,1334,COVID 19 SMALL BUSINESS GRANT
Eden District Council,http://opendatacommunities.org/id/district-council/eden,Financial Services Manager,Emergency Planning and Works,Grants and contributions,THE RATE PAYER,42001344,14/12/2020,186358,1334,COVID 19 SMALL BUSINESS GRANT
Eden District Council,http://opendatacommunities.org/id/district-council/eden,Financial Services Manager,Emergency Planning and Works,Grants and contributions,able and station taxis penrith,42001339,14/12/2020,186359,1334,COVID 19 SMALL BUSINESS GRANT
Eden District Council,http://opendatacommunities.org/id/district-council/eden,Financial Services Manager,Emergency Planning and Works,Grants and contributions,EDEN VALLEY MEAT COMPANY LTD,40249605,14/12/2020,186360,1334,COVID 19 SMALL BUSINESS GRANT
Eden District Council,http://opendatacommunities.org/id/district-council/eden,Financial Services Manager,Emergency Planning and Works,Grants and contributions,Fellside ACTIVE,42001338,14/12/2020,186361,1334,COVID 19 SMALL BUSINESS GRANT
Eden District Council,http://opendatacommunities.org/id/district-council/eden,Financial Services Manager,Emergency Planning and Works,Grants and contributions,Gibson Cottage,40202378,14/12/2020,186362,1334,COVID 19 SMALL BUSINESS GRANT
Eden District Council,http://opendatacommunities.org/id/district-council/eden,Financial Services Manager,Emergency Planning and Works,Grants and contributions,JRW Plastering Services.,42001334,14/12/2020,186363,1334,COVID 19 SMALL BUSINESS GRANT
Eden District Council,http://opendatacommunities.org/id/district-council/eden,Financial Services Manager,Emergency Planning and Works,Grants and contributions,THE RATE PAYER,42001345,14/12/2020,186364,1334,COVID 19 SMALL BUSINESS GRANT
Eden District Council,http://opendatacommunities.org/id/district-council/eden,Financial Services Manager,Emergency Planning and Works,Grants and contributions,Gamblesby Cricket Club,40037680,14/12/2020,186365,1334,COVID 19 SMALL BUSINESS GRANT
Eden District Council,http://opendatacommunities.org/id/district-council/eden,Financial Services Manager,Emergency Planning and Works,Grants and contributions,Gamblesby Community Centre,40070052,14/12/2020,186366,1334,COVID 19 SMALL BUSINESS GRANT
Eden District Council,http://opendatacommunities.org/id/district-council/eden,Financial Services Manager,Emergency Planning and Works,Grants and contributions,Katy Edgars Outside Catering Ltd,40165219,14/12/2020,186367,1334,COVID 19 SMALL BUSINESS GRANT
Eden District Council,http://opendatacommunities.org/id/district-council/eden,Financial Services Manager,Emergency Planning and Works,Grants and contributions,Katy Edgars Outside Catering Ltd,40154936,14/12/2020,186368,1334,COVID 19 SMALL BUSINESS GRANT
Eden District Council,http://opendatacommunities.org/id/district-council/eden,Financial Services Manager,Emergency Planning and Works,Grants and contributions,Hillcroft Leisure Limited,40240981,14/12/2020,186369,1334,COVID 19 SMALL BUSINESS GRANT
Eden District Council,http://opendatacommunities.org/id/district-council/eden,Financial Services Manager,Emergency Planning and Works,Grants and contributions,Scarside Farm,40227407,14/12/2020,186370,1334,COVID 19 SMALL BUSINESS GRANT
Eden District Council,http://opendatacommunities.org/id/district-council/eden,Financial Services Manager,Emergency Planning and Works,Grants and contributions,Entwisle Property Services,40179935,14/12/2020,186371,1334,COVID 19 SMALL BUSINESS GRANT
Eden District Council,http://opendatacommunities.org/id/district-council/eden,Financial Services Manager,Emergency Planning and Works,Grants and contributions,Yew Tree Farm,40162326,14/12/2020,186372,1334,COVID 19 SMALL BUSINESS GRANT
Eden District Council,http://opendatacommunities.org/id/district-council/eden,Financial Services Manager,Emergency Planning and Works,Grants and contributions,THE RATE PAYER,40239356,14/12/2020,186373,1334,COVID 19 SMALL BUSINESS GRANT
Eden District Council,http://opendatacommunities.org/id/district-council/eden,Financial Services Manager,Emergency Planning and Works,Grants and contributions,Stainton Recreation Committee,40056988,14/12/2020,186374,1334,COVID 19 SMALL BUSINESS GRANT
Eden District Council,http://opendatacommunities.org/id/district-council/eden,Financial Services Manager,Emergency Planning and Works,Grants and contributions,Lookin How Ltd,40235729,14/12/2020,186375,1334,COVID 19 SMALL BUSINESS GRANT
Eden District Council,http://opendatacommunities.org/id/district-council/eden,Financial Services Manager,Emergency Planning and Works,Grants and contributions,THE RATE PAYER,40234856,14/12/2020,186376,1334,COVID 19 SMALL BUSINESS GRANT
Eden District Council,http://opendatacommunities.org/id/district-council/eden,Financial Services Manager,Emergency Planning and Works,Grants and contributions,Blencathra House,40245047,14/12/2020,186377,1334,COVID 19 SMALL BUSINESS GRANT
Eden District Council,http://opendatacommunities.org/id/district-council/eden,Financial Services Manager,Emergency Planning and Works,Grants and contributions,SKELTON BOWLING CLUB,40107084,14/12/2020,186378,1334,COVID 19 SMALL BUSINESS GRANT
Eden District Council,http://opendatacommunities.org/id/district-council/eden,Financial Services Manager,Emergency Planning and Works,Grants and contributions,Hutton in the Forest Village Hall,40041740,14/12/2020,186379,1334,COVID 19 SMALL BUSINESS GRANT
Eden District Council,http://opendatacommunities.org/id/district-council/eden,Financial Services Manager,Emergency Planning and Works,Grants and contributions,Threlkeld Public Room Committee,40039624,14/12/2020,186380,1334,COVID 19 SMALL BUSINESS GRANT
Eden District Council,http://opendatacommunities.org/id/district-council/eden,Financial Services Manager,Emergency Planning and Works,Grants and contributions,THE RATE PAYER,40127187,14/12/2020,186381,1334,COVID 19 SMALL BUSINESS GRANT
Eden District Council,http://opendatacommunities.org/id/district-council/eden,Financial Services Manager,Emergency Planning and Works,Grants and contributions,THE RATE PAYER,40247913,14/12/2020,186382,1334,COVID 19 SMALL BUSINESS GRANT
Eden District Council,http://opendatacommunities.org/id/district-council/eden,Financial Services Manager,Emergency Planning and Works,Grants and contributions,Crosby Garrett village hall,40040457,14/12/2020,186383,1334,COVID 19 SMALL BUSINESS GRANT
Eden District Council,http://opendatacommunities.org/id/district-council/eden,Financial Services Manager,Emergency Planning and Works,Grants and contributions,THE RATE PAYER,40217677,14/12/2020,186384,1334,COVID 19 SMALL BUSINESS GRANT
Eden District Council,http://opendatacommunities.org/id/district-council/eden,Financial Services Manager,Emergency Planning and Works,Grants and contributions,King Georges Playing Field,40032708,14/12/2020,186385,1334,COVID 19 SMALL BUSINESS GRANT
Eden District Council,http://opendatacommunities.org/id/district-council/eden,Financial Services Manager,Emergency Planning and Works,Grants and contributions,THE RATE PAYER,40057714,14/12/2020,186386,1334,COVID 19 SMALL BUSINESS GRANT
Eden District Council,http://opendatacommunities.org/id/district-council/eden,Financial Services Manager,Emergency Planning and Works,Grants and contributions,EDEN HOUSING ASSOCIATION LTD,EDE001,14/12/2020,186808,3000,EHA COVID SUPPORT SW1
Eden District Council,http://opendatacommunities.org/id/district-council/eden,Financial Services Manager,Emergency Planning and Works,Grants and contributions,ark rental co. ltd,40231055,17/12/2020,186874,1334,COVID 19 SMALL BUSINESS GRANT
Eden District Council,http://opendatacommunities.org/id/district-council/eden,Financial Services Manager,Emergency Planning and Works,Grants and contributions,Black Hand Wine Limited,42001355,17/12/2020,186875,1334,COVID 19 SMALL BUSINESS GRANT
Eden District Council,http://opendatacommunities.org/id/district-council/eden,Financial Services Manager,Emergency Planning and Works,Grants and contributions,Horseshoe    Launderette,42001361,17/12/2020,186876,1334,COVID 19 SMALL BUSINESS GRANT
Eden District Council,http://opendatacommunities.org/id/district-council/eden,Financial Services Manager,Emergency Planning and Works,Grants and contributions,THE RATE PAYER,40216254,17/12/2020,186877,1334,COVID 19 SMALL BUSINESS GRANT
Eden District Council,http://opendatacommunities.org/id/district-council/eden,Financial Services Manager,Emergency Planning and Works,Grants and contributions,IMS Cumbria LTD,42001364,17/12/2020,186878,1334,COVID 19 SMALL BUSINESS GRANT
Eden District Council,http://opendatacommunities.org/id/district-council/eden,Financial Services Manager,Emergency Planning and Works,Grants and contributions,Signature Concierge Housekeeping,42001354,17/12/2020,186879,1334,COVID 19 SMALL BUSINESS GRANT
Eden District Council,http://opendatacommunities.org/id/district-council/eden,Financial Services Manager,Emergency Planning and Works,Grants and contributions,THE RATE PAYER,42001363,17/12/2020,186880,1334,COVID 19 SMALL BUSINESS GRANT
Eden District Council,http://opendatacommunities.org/id/district-council/eden,Financial Services Manager,Emergency Planning and Works,Grants and contributions,Nourish Yoga,42001356,17/12/2020,186881,1334,COVID 19 SMALL BUSINESS GRANT
Eden District Council,http://opendatacommunities.org/id/district-council/eden,Financial Services Manager,Emergency Planning and Works,Grants and contributions,THE RATE PAYER,42001359,17/12/2020,186882,1334,COVID 19 SMALL BUSINESS GRANT
Eden District Council,http://opendatacommunities.org/id/district-council/eden,Financial Services Manager,Emergency Planning and Works,Grants and contributions,Carleton Taxis,42001360,17/12/2020,186883,1334,COVID 19 SMALL BUSINESS GRANT
Eden District Council,http://opendatacommunities.org/id/district-council/eden,Financial Services Manager,Emergency Planning and Works,Grants and contributions,Abacus Taxis,42001362,17/12/2020,186884,1334,COVID 19 SMALL BUSINESS GRANT
Eden District Council,http://opendatacommunities.org/id/district-council/eden,Financial Services Manager,Emergency Planning and Works,Grants and contributions,Tuckers,42001353,17/12/2020,186885,1334,COVID 19 SMALL BUSINESS GRANT
Eden District Council,http://opendatacommunities.org/id/district-council/eden,Financial Services Manager,Emergency Planning and Works,Grants and contributions,Pass with George,42001358,17/12/2020,186886,1334,COVID 19 SMALL BUSINESS GRANT
Eden District Council,http://opendatacommunities.org/id/district-council/eden,Financial Services Manager,Emergency Planning and Works,Grants and contributions,River Garth Guest House,42001352,17/12/2020,186887,1334,COVID 19 SMALL BUSINESS GRANT
Eden District Council,http://opendatacommunities.org/id/district-council/eden,Financial Services Manager,Emergency Planning and Works,Grants and contributions,THE RATE PAYER,42001357,17/12/2020,186888,1334,COVID 19 SMALL BUSINESS GRANT
Eden District Council,http://opendatacommunities.org/id/district-council/eden,Financial Services Manager,Emergency Planning and Works,Grants and contributions,THE RATE PAYER,40248398,17/12/2020,186889,1334,COVID 19 SMALL BUSINESS GRANT
Eden District Council,http://opendatacommunities.org/id/district-council/eden,Financial Services Manager,Emergency Planning and Works,Grants and contributions,Alston Masonic Lodge,40055930,17/12/2020,186890,1334,COVID 19 SMALL BUSINESS GRANT
Eden District Council,http://opendatacommunities.org/id/district-council/eden,Financial Services Manager,Emergency Planning and Works,Grants and contributions,THE RATE PAYER,40221669,17/12/2020,186891,1334,COVID 19 SMALL BUSINESS GRANT
Eden District Council,http://opendatacommunities.org/id/district-council/eden,Financial Services Manager,Emergency Planning and Works,Grants and contributions,THE RATE PAYER,40145567,17/12/2020,186892,1334,COVID 19 SMALL BUSINESS GRANT
Eden District Council,http://opendatacommunities.org/id/district-council/eden,Financial Services Manager,Emergency Planning and Works,Grants and contributions,Yvojim Ltd t/a Bojangles,40192129,17/12/2020,186893,1334,COVID 19 SMALL BUSINESS GRANT
Eden District Council,http://opendatacommunities.org/id/district-council/eden,Financial Services Manager,Emergency Planning and Works,Grants and contributions,Shine Music Studio,40248015,17/12/2020,186894,1334,COVID 19 SMALL BUSINESS GRANT
Eden District Council,http://opendatacommunities.org/id/district-council/eden,Financial Services Manager,Emergency Planning and Works,Grants and contributions,THE RATE PAYER,40248589,17/12/2020,186895,1334,COVID 19 SMALL BUSINESS GRANT
Eden District Council,http://opendatacommunities.org/id/district-council/eden,Financial Services Manager,Emergency Planning and Works,Grants and contributions,Tastes of Eden,40152107,17/12/2020,186896,1334,COVID 19 SMALL BUSINESS GRANT
Eden District Council,http://opendatacommunities.org/id/district-council/eden,Financial Services Manager,Emergency Planning and Works,Grants and contributions,Flower Shop,40246309,17/12/2020,186897,1334,COVID 19 SMALL BUSINESS GRANT
Eden District Council,http://opendatacommunities.org/id/district-council/eden,Financial Services Manager,Emergency Planning and Works,Grants and contributions,Aspire inns LTD,40249315,17/12/2020,186898,2000,COVID 19 SMALL BUSINESS GRANT
Eden District Council,http://opendatacommunities.org/id/district-council/eden,Financial Services Manager,Emergency Planning and Works,Grants and contributions,Country Concept Ltd,40214227,17/12/2020,186899,1334,COVID 19 SMALL BUSINESS GRANT
Eden District Council,http://opendatacommunities.org/id/district-council/eden,Financial Services Manager,Emergency Planning and Works,Grants and contributions,Horseshoe Restaurant,40243423,17/12/2020,186900,1334,COVID 19 SMALL BUSINESS GRANT
Eden District Council,http://opendatacommunities.org/id/district-council/eden,Financial Services Manager,Emergency Planning and Works,Grants and contributions,curios and collectables,40242086,17/12/2020,186901,1334,COVID 19 SMALL BUSINESS GRANT
Eden District Council,http://opendatacommunities.org/id/district-council/eden,Financial Services Manager,Emergency Planning and Works,Grants and contributions,ANGEL LANE CHIPPIE LIMITED,40208833,17/12/2020,186902,1334,COVID 19 SMALL BUSINESS GRANT
Eden District Council,http://opendatacommunities.org/id/district-council/eden,Financial Services Manager,Emergency Planning and Works,Grants and contributions,Carlisle Diocesan Board of Finance Ltd,40223764,17/12/2020,186903,1334,COVID 19 SMALL BUSINESS GRANT
Eden District Council,http://opendatacommunities.org/id/district-council/eden,Financial Services Manager,Emergency Planning and Works,Grants and contributions,Miss Flitty Tattoo & Piercing),40223993,17/12/2020,186904,1334,COVID 19 SMALL BUSINESS GRANT
Eden District Council,http://opendatacommunities.org/id/district-council/eden,Financial Services Manager,Emergency Planning and Works,Grants and contributions,DESTINY CARDS,40161590,17/12/2020,186905,1334,COVID 19 SMALL BUSINESS GRANT
Eden District Council,http://opendatacommunities.org/id/district-council/eden,Financial Services Manager,Emergency Planning and Works,Grants and contributions,Ullswater Navigation & Transit Co,40173500,17/12/2020,186906,1334,COVID 19 SMALL BUSINESS GRANT
Eden District Council,http://opendatacommunities.org/id/district-council/eden,Financial Services Manager,Emergency Planning and Works,Grants and contributions,BlueJam Cumbria Ltd,40240912,17/12/2020,186907,1334,COVID 19 SMALL BUSINESS GRANT
Eden District Council,http://opendatacommunities.org/id/district-council/eden,Financial Services Manager,Emergency Planning and Works,Grants and contributions,  Purdon & Co,40248749,17/12/2020,186908,1334,COVID 19 SMALL BUSINESS GRANT
Eden District Council,http://opendatacommunities.org/id/district-council/eden,Financial Services Manager,Emergency Planning and Works,Grants and contributions,THE RATE PAYER,40231857,17/12/2020,186909,1334,COVID 19 SMALL BUSINESS GRANT
Eden District Council,http://opendatacommunities.org/id/district-council/eden,Financial Services Manager,Emergency Planning and Works,Grants and contributions,Hairdresser and premises,40241304,17/12/2020,186910,1334,COVID 19 SMALL BUSINESS GRANT
Eden District Council,http://opendatacommunities.org/id/district-council/eden,Financial Services Manager,Emergency Planning and Works,Grants and contributions,THE RATE PAYER,40249742,17/12/2020,186911,1334,COVID 19 SMALL BUSINESS GRANT
Eden District Council,http://opendatacommunities.org/id/district-council/eden,Financial Services Manager,Emergency Planning and Works,Grants and contributions,THE RATE PAYER,40228288,17/12/2020,186912,1334,COVID 19 SMALL BUSINESS GRANT
Eden District Council,http://opendatacommunities.org/id/district-council/eden,Financial Services Manager,Emergency Planning and Works,Grants and contributions,TOP CUT,40225746,17/12/2020,186913,1334,COVID 19 SMALL BUSINESS GRANT
Eden District Council,http://opendatacommunities.org/id/district-council/eden,Financial Services Manager,Emergency Planning and Works,Grants and contributions, The Wood Workshop,40144779,17/12/2020,186914,1334,COVID 19 SMALL BUSINESS GRANT
Eden District Council,http://opendatacommunities.org/id/district-council/eden,Financial Services Manager,Emergency Planning and Works,Grants and contributions,DTec Computers LTD,40210782,17/12/2020,186915,1334,COVID 19 SMALL BUSINESS GRANT
Eden District Council,http://opendatacommunities.org/id/district-council/eden,Financial Services Manager,Emergency Planning and Works,Grants and contributions, Simpsons,40177397,17/12/2020,186916,1334,COVID 19 SMALL BUSINESS GRANT
Eden District Council,http://opendatacommunities.org/id/district-council/eden,Financial Services Manager,Emergency Planning and Works,Grants and contributions,Cumbrian Stone Ltd,40225715,17/12/2020,186917,1334,COVID 19 SMALL BUSINESS GRANT
Eden District Council,http://opendatacommunities.org/id/district-council/eden,Financial Services Manager,Emergency Planning and Works,Grants and contributions,THE RATE PAYER,40250612,17/12/2020,186918,1334,COVID 19 SMALL BUSINESS GRANT
Eden District Council,http://opendatacommunities.org/id/district-council/eden,Financial Services Manager,Emergency Planning and Works,Grants and contributions,THE RATE PAYER,40250155,17/12/2020,186919,1334,COVID 19 SMALL BUSINESS GRANT
Eden District Council,http://opendatacommunities.org/id/district-council/eden,Financial Services Manager,Emergency Planning and Works,Grants and contributions,THE RATE PAYER,40249735,17/12/2020,186920,1334,COVID 19 SMALL BUSINESS GRANT
Eden District Council,http://opendatacommunities.org/id/district-council/eden,Financial Services Manager,Emergency Planning and Works,Grants and contributions,Interlude Ceramics Limited,40249100,17/12/2020,186921,1334,COVID 19 SMALL BUSINESS GRANT
Eden District Council,http://opendatacommunities.org/id/district-council/eden,Financial Services Manager,Emergency Planning and Works,Grants and contributions,THE RATE PAYER,40246033,17/12/2020,186922,1334,COVID 19 SMALL BUSINESS GRANT
Eden District Council,http://opendatacommunities.org/id/district-council/eden,Financial Services Manager,Emergency Planning and Works,Grants and contributions,THE RATE PAYER,40154271,17/12/2020,186923,1334,COVID 19 SMALL BUSINESS GRANT
Eden District Council,http://opendatacommunities.org/id/district-council/eden,Financial Services Manager,Emergency Planning and Works,Grants and contributions,THE RATE PAYER,40250087,17/12/2020,186924,1334,COVID 19 SMALL BUSINESS GRANT
Eden District Council,http://opendatacommunities.org/id/district-council/eden,Financial Services Manager,Emergency Planning and Works,Grants and contributions,THE RATE PAYER,40249209,17/12/2020,186925,1334,COVID 19 SMALL BUSINESS GRANT
Eden District Council,http://opendatacommunities.org/id/district-council/eden,Financial Services Manager,Emergency Planning and Works,Grants and contributions,THE RATE PAYER,40032524,17/12/2020,186926,3000,COVID 19 SMALL BUSINESS GRANT
Eden District Council,http://opendatacommunities.org/id/district-council/eden,Financial Services Manager,Emergency Planning and Works,Grants and contributions,Lilac Barn & Lilac Studio,40160047,17/12/2020,186927,1334,COVID 19 SMALL BUSINESS GRANT
Eden District Council,http://opendatacommunities.org/id/district-council/eden,Financial Services Manager,Emergency Planning and Works,Grants and contributions,The Herdwick Inn,40246590,17/12/2020,186928,2000,COVID 19 SMALL BUSINESS GRANT
Eden District Council,http://opendatacommunities.org/id/district-council/eden,Financial Services Manager,Emergency Planning and Works,Grants and contributions,Waternook,40217448,17/12/2020,186929,2000,COVID 19 SMALL BUSINESS GRANT
Eden District Council,http://opendatacommunities.org/id/district-council/eden,Transformation & Customers Head of,Central Expenses,Postages,NEOPOST,NEO004,14/12/2020,186934,995,Franking Machine Top Up 1
Eden District Council,http://opendatacommunities.org/id/district-council/eden,Transformation & Customers Head of,Central Expenses,Postages,NEOPOST,NEO004,14/12/2020,186935,995,Franking Machine Top Up 2
Eden District Council,http://opendatacommunities.org/id/district-council/eden,Transformation & Customers Head of,Central Expenses,Postages,NEOPOST,NEO004,14/12/2020,186936,995,Franking Machine Top Up 3
Eden District Council,http://opendatacommunities.org/id/district-council/eden,Transformation & Customers Head of,Central Expenses,Postages,NEOPOST,NEO004,14/12/2020,186937,995,Franking Machine Top Up 4
Eden District Council,http://opendatacommunities.org/id/district-council/eden,Financial Services Manager,Emergency Planning and Works,Grants and contributions, Aqua Clean,40212757,22/12/2020,187014,1334,COVID 19 SMALL BUSINESS GRANT
Eden District Council,http://opendatacommunities.org/id/district-council/eden,Financial Services Manager,Emergency Planning and Works,Grants and contributions,Atlantic Geomatics (Intl) Ltd,42001368,22/12/2020,187015,1334,COVID 19 SMALL BUSINESS GRANT
Eden District Council,http://opendatacommunities.org/id/district-council/eden,Financial Services Manager,Emergency Planning and Works,Grants and contributions,Atlantic Geomatics (UK) Ltd,40244266,22/12/2020,187016,1334,COVID 19 SMALL BUSINESS GRANT
Eden District Council,http://opendatacommunities.org/id/district-council/eden,Financial Services Manager,Emergency Planning and Works,Grants and contributions,One Lesiure Limited,42001399,22/12/2020,187017,1334,COVID 19 SMALL BUSINESS GRANT
Eden District Council,http://opendatacommunities.org/id/district-council/eden,Financial Services Manager,Emergency Planning and Works,Grants and contributions,Cumbria Solutions Limited,42001386,22/12/2020,187018,1334,COVID 19 SMALL BUSINESS GRANT
Eden District Council,http://opendatacommunities.org/id/district-council/eden,Financial Services Manager,Emergency Planning and Works,Grants and contributions,Bills Bespoke Joinery,42001387,22/12/2020,187019,1334,COVID 19 SMALL BUSINESS GRANT
Eden District Council,http://opendatacommunities.org/id/district-council/eden,Financial Services Manager,Emergency Planning and Works,Grants and contributions,THE HIGH PLAICE FISH & CHIP SHOP,40246668,22/12/2020,187020,1334,COVID 19 SMALL BUSINESS GRANT
Eden District Council,http://opendatacommunities.org/id/district-council/eden,Financial Services Manager,Emergency Planning and Works,Grants and contributions,Just Beauty by Stacey,42001367,22/12/2020,187021,1334,COVID 19 SMALL BUSINESS GRANT
Eden District Council,http://opendatacommunities.org/id/district-council/eden,Financial Services Manager,Emergency Planning and Works,Grants and contributions,THE RATE PAYER,40242833,22/12/2020,187022,1334,COVID 19 SMALL BUSINESS GRANT
Eden District Council,http://opendatacommunities.org/id/district-council/eden,Financial Services Manager,Emergency Planning and Works,Grants and contributions,THE RATE PAYER,42001395,22/12/2020,187023,1334,COVID 19 SMALL BUSINESS GRANT
Eden District Council,http://opendatacommunities.org/id/district-council/eden,Financial Services Manager,Emergency Planning and Works,Grants and contributions,Penrith Carpet Cleaning,42001372,22/12/2020,187024,1334,COVID 19 SMALL BUSINESS GRANT
Eden District Council,http://opendatacommunities.org/id/district-council/eden,Financial Services Manager,Emergency Planning and Works,Grants and contributions,Purple Sage Catering 4 Cumbria,40201412,22/12/2020,187025,1334,COVID 19 SMALL BUSINESS GRANT
Eden District Council,http://opendatacommunities.org/id/district-council/eden,Financial Services Manager,Emergency Planning and Works,Grants and contributions,The Beauty Room by Layla,42001401,22/12/2020,187026,1334,COVID 19 SMALL BUSINESS GRANT
Eden District Council,http://opendatacommunities.org/id/district-council/eden,Financial Services Manager,Emergency Planning and Works,Grants and contributions,Crookabeck Angoras,42001383,22/12/2020,187027,1334,COVID 19 SMALL BUSINESS GRANT
Eden District Council,http://opendatacommunities.org/id/district-council/eden,Financial Services Manager,Emergency Planning and Works,Grants and contributions,THE RATE PAYER,42001404,22/12/2020,187028,1334,COVID 19 SMALL BUSINESS GRANT
Eden District Council,http://opendatacommunities.org/id/district-council/eden,Financial Services Manager,Emergency Planning and Works,Grants and contributions,THE RATE PAYER,40028129,22/12/2020,187029,1334,COVID 19 SMALL BUSINESS GRANT
Eden District Council,http://opendatacommunities.org/id/district-council/eden,Financial Services Manager,Emergency Planning and Works,Grants and contributions,THE RATE PAYER,42001377,22/12/2020,187030,1334,COVID 19 SMALL BUSINESS GRANT
Eden District Council,http://opendatacommunities.org/id/district-council/eden,Financial Services Manager,Emergency Planning and Works,Grants and contributions,Tarzan of Greystoke Ltd,42001397,22/12/2020,187031,1334,COVID 19 SMALL BUSINESS GRANT
Eden District Council,http://opendatacommunities.org/id/district-council/eden,Financial Services Manager,Emergency Planning and Works,Grants and contributions,The Lakes Plumbing Heating And Gas,42001402,22/12/2020,187032,1334,COVID 19 SMALL BUSINESS GRANT
Eden District Council,http://opendatacommunities.org/id/district-council/eden,Financial Services Manager,Emergency Planning and Works,Grants and contributions,ROMKESS MOTOR CO,42001400,22/12/2020,187033,1334,COVID 19 SMALL BUSINESS GRANT
Eden District Council,http://opendatacommunities.org/id/district-council/eden,Financial Services Manager,Emergency Planning and Works,Grants and contributions,Appleby Castle Holiday Cottages Ltd,42001380,22/12/2020,187034,1334,COVID 19 SMALL BUSINESS GRANT
Eden District Council,http://opendatacommunities.org/id/district-council/eden,Financial Services Manager,Emergency Planning and Works,Grants and contributions,Dave Meredith Tree Experts,42001376,22/12/2020,187035,1334,COVID 19 SMALL BUSINESS GRANT
Eden District Council,http://opendatacommunities.org/id/district-council/eden,Financial Services Manager,Emergency Planning and Works,Grants and contributions,THE RATE PAYER,42001389,22/12/2020,187036,1334,COVID 19 SMALL BUSINESS GRANT
Eden District Council,http://opendatacommunities.org/id/district-council/eden,Financial Services Manager,Emergency Planning and Works,Grants and contributions,Cumbria and Lake District Tours,42001398,22/12/2020,187037,1334,COVID 19 SMALL BUSINESS GRANT
Eden District Council,http://opendatacommunities.org/id/district-council/eden,Financial Services Manager,Emergency Planning and Works,Grants and contributions,Forwardrolls,42001381,22/12/2020,187038,1334,COVID 19 SMALL BUSINESS GRANT
Eden District Council,http://opendatacommunities.org/id/district-council/eden,Financial Services Manager,Emergency Planning and Works,Grants and contributions,THE RATE PAYER,42001365,22/12/2020,187039,1334,COVID 19 SMALL BUSINESS GRANT
Eden District Council,http://opendatacommunities.org/id/district-council/eden,Financial Services Manager,Emergency Planning and Works,Grants and contributions,THE RATE PAYER,42001396,22/12/2020,187040,1334,COVID 19 SMALL BUSINESS GRANT
Eden District Council,http://opendatacommunities.org/id/district-council/eden,Financial Services Manager,Emergency Planning and Works,Grants and contributions,Alston Taxis,42001371,22/12/2020,187041,1334,COVID 19 SMALL BUSINESS GRANT
Eden District Council,http://opendatacommunities.org/id/district-council/eden,Financial Services Manager,Emergency Planning and Works,Grants and contributions,M&A Private Hire Glenridding,42001392,22/12/2020,187042,1334,COVID 19 SMALL BUSINESS GRANT
Eden District Council,http://opendatacommunities.org/id/district-council/eden,Financial Services Manager,Emergency Planning and Works,Grants and contributions,R Mounsey agricultural services,42001393,22/12/2020,187043,1334,COVID 19 SMALL BUSINESS GRANT
Eden District Council,http://opendatacommunities.org/id/district-council/eden,Financial Services Manager,Emergency Planning and Works,Grants and contributions,Coal kadai,42001388,22/12/2020,187044,1334,COVID 19 SMALL BUSINESS GRANT
Eden District Council,http://opendatacommunities.org/id/district-council/eden,Financial Services Manager,Emergency Planning and Works,Grants and contributions,Hey Jules Ltd,42001379,22/12/2020,187045,1334,COVID 19 SMALL BUSINESS GRANT
Eden District Council,http://opendatacommunities.org/id/district-council/eden,Financial Services Manager,Emergency Planning and Works,Grants and contributions,THE RATE PAYER,42001382,22/12/2020,187046,1334,COVID 19 SMALL BUSINESS GRANT
Eden District Council,http://opendatacommunities.org/id/district-council/eden,Financial Services Manager,Emergency Planning and Works,Grants and contributions,one driver hire ltd,42001390,22/12/2020,187047,1334,COVID 19 SMALL BUSINESS GRANT
Eden District Council,http://opendatacommunities.org/id/district-council/eden,Financial Services Manager,Emergency Planning and Works,Grants and contributions,PenrithPhysioPilates,42001375,22/12/2020,187048,1334,COVID 19 SMALL BUSINESS GRANT
Eden District Council,http://opendatacommunities.org/id/district-council/eden,Financial Services Manager,Emergency Planning and Works,Grants and contributions,THE RATE PAYER,42001391,22/12/2020,187049,1334,COVID 19 SMALL BUSINESS GRANT
Eden District Council,http://opendatacommunities.org/id/district-council/eden,Financial Services Manager,Emergency Planning and Works,Grants and contributions,THE RATE PAYER,42001369,22/12/2020,187050,1334,COVID 19 SMALL BUSINESS GRANT
Eden District Council,http://opendatacommunities.org/id/district-council/eden,Financial Services Manager,Emergency Planning and Works,Grants and contributions,New Lake Property Development,42001370,22/12/2020,187051,1334,COVID 19 SMALL BUSINESS GRANT
Eden District Council,http://opendatacommunities.org/id/district-council/eden,Financial Services Manager,Emergency Planning and Works,Grants and contributions,JB HomeClean,42001378,22/12/2020,187052,1334,COVID 19 SMALL BUSINESS GRANT
Eden District Council,http://opendatacommunities.org/id/district-council/eden,Financial Services Manager,Emergency Planning and Works,Grants and contributions,Eden Catering Solutions,42001385,22/12/2020,187053,1334,COVID 19 SMALL BUSINESS GRANT
Eden District Council,http://opendatacommunities.org/id/district-council/eden,Financial Services Manager,Emergency Planning and Works,Grants and contributions,THE RATE PAYER,42001373,22/12/2020,187054,1334,COVID 19 SMALL BUSINESS GRANT
Eden District Council,http://opendatacommunities.org/id/district-council/eden,Financial Services Manager,Emergency Planning and Works,Grants and contributions,THE RATE PAYER,42001374,22/12/2020,187055,1334,COVID 19 SMALL BUSINESS GRANT
Eden District Council,http://opendatacommunities.org/id/district-council/eden,Financial Services Manager,Emergency Planning and Works,Grants and contributions,Eamont Competition Horses,42001403,22/12/2020,187056,1334,COVID 19 SMALL BUSINESS GRANT
Eden District Council,http://opendatacommunities.org/id/district-council/eden,Financial Services Manager,Emergency Planning and Works,Grants and contributions,THE RATE PAYER,42001394,22/12/2020,187057,1334,COVID 19 SMALL BUSINESS GRANT
Eden District Council,http://opendatacommunities.org/id/district-council/eden,Financial Services Manager,Emergency Planning and Works,Grants and contributions,THE RATE PAYER,42001366,22/12/2020,187058,1334,COVID 19 SMALL BUSINESS GRANT
Eden District Council,http://opendatacommunities.org/id/district-council/eden,Financial Services Manager,Emergency Planning and Works,Grants and contributions,DD Taxi,42001384,22/12/2020,187059,1334,COVID 19 SMALL BUSINESS GRANT
Eden District Council,http://opendatacommunities.org/id/district-council/eden,Financial Services Manager,Emergency Planning and Works,Grants and contributions,TRAVELLERS REST,40072386,22/12/2020,187060,1000,COVID 19 SMALL BUSINESS GRANT
Eden District Council,http://opendatacommunities.org/id/district-council/eden,Financial Services Manager,Emergency Planning and Works,Grants and contributions,the overwater lodge,40121417,22/12/2020,187061,1000,COVID 19 SMALL BUSINESS GRANT
Eden District Council,http://opendatacommunities.org/id/district-council/eden,Financial Services Manager,Emergency Planning and Works,Grants and contributions,Victoria Inn,40122397,22/12/2020,187062,1000,COVID 19 SMALL BUSINESS GRANT
Eden District Council,http://opendatacommunities.org/id/district-council/eden,Financial Services Manager,Emergency Planning and Works,Grants and contributions,THE RATE PAYER,40152800,22/12/2020,187063,1000,COVID 19 SMALL BUSINESS GRANT
Eden District Council,http://opendatacommunities.org/id/district-council/eden,Financial Services Manager,Emergency Planning and Works,Grants and contributions,The Turks Head Inn,40153094,22/12/2020,187064,1000,COVID 19 SMALL BUSINESS GRANT
Eden District Council,http://opendatacommunities.org/id/district-council/eden,Financial Services Manager,Emergency Planning and Works,Grants and contributions,Grey Goat,40162661,22/12/2020,187065,1000,COVID 19 SMALL BUSINESS GRANT
Eden District Council,http://opendatacommunities.org/id/district-council/eden,Financial Services Manager,Emergency Planning and Works,Grants and contributions,Board and Elbow,40165714,22/12/2020,187066,1000,COVID 19 SMALL BUSINESS GRANT
Eden District Council,http://opendatacommunities.org/id/district-council/eden,Financial Services Manager,Emergency Planning and Works,Grants and contributions,The Golden Ball 4 High Weind Appleby,40165882,22/12/2020,187067,1000,COVID 19 SMALL BUSINESS GRANT
Eden District Council,http://opendatacommunities.org/id/district-council/eden,Financial Services Manager,Emergency Planning and Works,Grants and contributions,CROWN AND MITRE HOTEL,40167123,22/12/2020,187068,1000,COVID 19 SMALL BUSINESS GRANT
Eden District Council,http://opendatacommunities.org/id/district-council/eden,Financial Services Manager,Emergency Planning and Works,Grants and contributions,George and Dragon Clifton,40178932,22/12/2020,187069,1000,COVID 19 SMALL BUSINESS GRANT
Eden District Council,http://opendatacommunities.org/id/district-council/eden,Financial Services Manager,Emergency Planning and Works,Grants and contributions,The woolpack,40185923,22/12/2020,187070,1000,COVID 19 SMALL BUSINESS GRANT
Eden District Council,http://opendatacommunities.org/id/district-council/eden,Financial Services Manager,Emergency Planning and Works,Grants and contributions,Tarzania Ltd,40189239,22/12/2020,187071,1000,COVID 19 SMALL BUSINESS GRANT
Eden District Council,http://opendatacommunities.org/id/district-council/eden,Financial Services Manager,Emergency Planning and Works,Grants and contributions,The Midland Hotel,40189734,22/12/2020,187072,1000,COVID 19 SMALL BUSINESS GRANT
Eden District Council,http://opendatacommunities.org/id/district-council/eden,Financial Services Manager,Emergency Planning and Works,Grants and contributions,Hare and Hounds (Appleby) Ltd,40193900,22/12/2020,187073,1000,COVID 19 SMALL BUSINESS GRANT
Eden District Council,http://opendatacommunities.org/id/district-council/eden,Financial Services Manager,Emergency Planning and Works,Grants and contributions,Stone Harrison Ltd,40203807,22/12/2020,187074,1000,COVID 19 SMALL BUSINESS GRANT
Eden District Council,http://opendatacommunities.org/id/district-council/eden,Financial Services Manager,Emergency Planning and Works,Grants and contributions,The New Inn Hoff,40211167,22/12/2020,187075,1000,COVID 19 SMALL BUSINESS GRANT
Eden District Council,http://opendatacommunities.org/id/district-council/eden,Financial Services Manager,Emergency Planning and Works,Grants and contributions,THE RATE PAYER,40217462,22/12/2020,187076,1000,COVID 19 SMALL BUSINESS GRANT
Eden District Council,http://opendatacommunities.org/id/district-council/eden,Financial Services Manager,Emergency Planning and Works,Grants and contributions,Black Swan,40226060,22/12/2020,187077,1000,COVID 19 SMALL BUSINESS GRANT
Eden District Council,http://opendatacommunities.org/id/district-council/eden,Financial Services Manager,Emergency Planning and Works,Grants and contributions,Pennine Hotel,40226312,22/12/2020,187078,1000,COVID 19 SMALL BUSINESS GRANT
Eden District Council,http://opendatacommunities.org/id/district-council/eden,Financial Services Manager,Emergency Planning and Works,Grants and contributions,The George hotel,40227261,22/12/2020,187079,1000,COVID 19 SMALL BUSINESS GRANT
Eden District Council,http://opendatacommunities.org/id/district-council/eden,Financial Services Manager,Emergency Planning and Works,Grants and contributions,Arms Hotel (Shap) Ltd,40228462,22/12/2020,187080,1000,COVID 19 SMALL BUSINESS GRANT
Eden District Council,http://opendatacommunities.org/id/district-council/eden,Financial Services Manager,Emergency Planning and Works,Grants and contributions,The Station (castlegate) Ltd,40229700,22/12/2020,187081,1000,COVID 19 SMALL BUSINESS GRANT
Eden District Council,http://opendatacommunities.org/id/district-council/eden,Financial Services Manager,Emergency Planning and Works,Grants and contributions,THE THREE GREYHOUNDS,40232751,22/12/2020,187082,1000,COVID 19 SMALL BUSINESS GRANT
Eden District Council,http://opendatacommunities.org/id/district-council/eden,Financial Services Manager,Emergency Planning and Works,Grants and contributions,Clickham Inn,40234863,22/12/2020,187083,1000,COVID 19 SMALL BUSINESS GRANT
Eden District Council,http://opendatacommunities.org/id/district-council/eden,Financial Services Manager,Emergency Planning and Works,Grants and contributions,Oates Inns,40237343,22/12/2020,187084,1000,COVID 19 SMALL BUSINESS GRANT
Eden District Council,http://opendatacommunities.org/id/district-council/eden,Financial Services Manager,Emergency Planning and Works,Grants and contributions,CIEL Hotels Ltd,40240004,22/12/2020,187085,1000,COVID 19 SMALL BUSINESS GRANT
Eden District Council,http://opendatacommunities.org/id/district-council/eden,Financial Services Manager,Emergency Planning and Works,Grants and contributions,SCOTMEX HOSPITALITY LTD / Cross Keys Inn,40241816,22/12/2020,187086,1000,COVID 19 SMALL BUSINESS GRANT
Eden District Council,http://opendatacommunities.org/id/district-council/eden,Financial Services Manager,Emergency Planning and Works,Grants and contributions,Fell Bars Ltd,40242680,22/12/2020,187087,1000,COVID 19 SMALL BUSINESS GRANT
Eden District Council,http://opendatacommunities.org/id/district-council/eden,Financial Services Manager,Emergency Planning and Works,Grants and contributions,Osprey Management Group Limited,40245344,22/12/2020,187088,1000,COVID 19 SMALL BUSINESS GRANT
Eden District Council,http://opendatacommunities.org/id/district-council/eden,Financial Services Manager,Emergency Planning and Works,Grants and contributions,Royal Oak Inn,40246200,22/12/2020,187089,1000,COVID 19 SMALL BUSINESS GRANT
Eden District Council,http://opendatacommunities.org/id/district-council/eden,Financial Services Manager,Emergency Planning and Works,Grants and contributions,THE RATE PAYER,40248343,22/12/2020,187090,1000,COVID 19 SMALL BUSINESS GRANT
Eden District Council,http://opendatacommunities.org/id/district-council/eden,Financial Services Manager,Emergency Planning and Works,Grants and contributions,The Guys (penrith) ltd,40249414,22/12/2020,187091,1000,COVID 19 SMALL BUSINESS GRANT
Eden District Council,http://opendatacommunities.org/id/district-council/eden,Financial Services Manager,Emergency Planning and Works,Grants and contributions,THE RATE PAYER,40250124,22/12/2020,187092,1000,COVID 19 SMALL BUSINESS GRANT
Eden District Council,http://opendatacommunities.org/id/district-council/eden,Financial Services Manager,Emergency Planning and Works,Grants and contributions,THE RATE PAYER,40219284,22/12/2020,187093,1334,COVID 19 SMALL BUSINESS GRANT
Eden District Council,http://opendatacommunities.org/id/district-council/eden,Financial Services Manager,Emergency Planning and Works,Grants and contributions,THE RATE PAYER,40175544,22/12/2020,187094,1334,COVID 19 SMALL BUSINESS GRANT
Eden District Council,http://opendatacommunities.org/id/district-council/eden,Financial Services Manager,Emergency Planning and Works,Grants and contributions,Southwaite Green Mill,40052313,22/12/2020,187095,1334,COVID 19 SMALL BUSINESS GRANT
Eden District Council,http://opendatacommunities.org/id/district-council/eden,Financial Services Manager,Emergency Planning and Works,Grants and contributions,THE RATE PAYER,40201986,22/12/2020,187096,1334,COVID 19 SMALL BUSINESS GRANT
Eden District Council,http://opendatacommunities.org/id/district-council/eden,Financial Services Manager,Emergency Planning and Works,Grants and contributions,Knipe Hall Ltd,40231673,22/12/2020,187097,1334,COVID 19 SMALL BUSINESS GRANT
Eden District Council,http://opendatacommunities.org/id/district-council/eden,Financial Services Manager,Emergency Planning and Works,Grants and contributions,Chapel Cottage Helton,40157720,22/12/2020,187098,1334,COVID 19 SMALL BUSINESS GRANT
Eden District Council,http://opendatacommunities.org/id/district-council/eden,Financial Services Manager,Emergency Planning and Works,Grants and contributions,LOW MOOR CARAVAN PARK,40052665,22/12/2020,187099,1334,COVID 19 SMALL BUSINESS GRANT
Eden District Council,http://opendatacommunities.org/id/district-council/eden,Financial Services Manager,Emergency Planning and Works,Grants and contributions,Harpers Caravan Site,40146782,22/12/2020,187100,1334,COVID 19 SMALL BUSINESS GRANT
Eden District Council,http://opendatacommunities.org/id/district-council/eden,Financial Services Manager,Emergency Planning and Works,Grants and contributions, Dodd's,40168164,22/12/2020,187101,1334,COVID 19 SMALL BUSINESS GRANT
Eden District Council,http://opendatacommunities.org/id/district-council/eden,Financial Services Manager,Emergency Planning and Works,Grants and contributions,Culgaith Institute Trustees,40048116,22/12/2020,187102,1334,COVID 19 SMALL BUSINESS GRANT
Eden District Council,http://opendatacommunities.org/id/district-council/eden,Financial Services Manager,Emergency Planning and Works,Grants and contributions,Stable Cottage,40234917,22/12/2020,187103,1334,COVID 19 SMALL BUSINESS GRANT
Eden District Council,http://opendatacommunities.org/id/district-council/eden,Financial Services Manager,Emergency Planning and Works,Grants and contributions,THE RATE PAYER,40238018,22/12/2020,187104,1334,COVID 19 SMALL BUSINESS GRANT
Eden District Council,http://opendatacommunities.org/id/district-council/eden,Financial Services Manager,Emergency Planning and Works,Grants and contributions,THE RATE PAYER,40235835,22/12/2020,187105,1334,COVID 19 SMALL BUSINESS GRANT
Eden District Council,http://opendatacommunities.org/id/district-council/eden,Financial Services Manager,Emergency Planning and Works,Grants and contributions,THE RATE PAYER,40163213,22/12/2020,187106,1334,COVID 19 SMALL BUSINESS GRANT
Eden District Council,http://opendatacommunities.org/id/district-council/eden,Financial Services Manager,Emergency Planning and Works,Grants and contributions,Aira Cottage,40152930,22/12/2020,187107,1334,COVID 19 SMALL BUSINESS GRANT
Eden District Council,http://opendatacommunities.org/id/district-council/eden,Financial Services Manager,Emergency Planning and Works,Grants and contributions,THE RATE PAYER,40200310,22/12/2020,187108,1334,COVID 19 SMALL BUSINESS GRANT
Eden District Council,http://opendatacommunities.org/id/district-council/eden,Financial Services Manager,Emergency Planning and Works,Grants and contributions,Absolute Escapes Lettings Ltd,40210744,22/12/2020,187109,1334,COVID 19 SMALL BUSINESS GRANT
Eden District Council,http://opendatacommunities.org/id/district-council/eden,Financial Services Manager,Emergency Planning and Works,Grants and contributions,J D Wetherspoon Plc,40212306,22/12/2020,187110,3000,COVID 19 SMALL BUSINESS GRANT
Eden District Council,http://opendatacommunities.org/id/district-council/eden,Financial Services Manager,Emergency Planning and Works,Grants and contributions,Brougham Hall Charitable Trust,40172866,22/12/2020,187111,1334,COVID 19 SMALL BUSINESS GRANT
Eden District Council,http://opendatacommunities.org/id/district-council/eden,Financial Services Manager,Emergency Planning and Works,Grants and contributions,THE RATE PAYER,40170587,22/12/2020,187112,1334,COVID 19 SMALL BUSINESS GRANT
Eden District Council,http://opendatacommunities.org/id/district-council/eden,Financial Services Manager,Emergency Planning and Works,Grants and contributions,Mr Ps Tattoo Parlour,40219949,22/12/2020,187113,1334,COVID 19 SMALL BUSINESS GRANT
Eden District Council,http://opendatacommunities.org/id/district-council/eden,Financial Services Manager,Emergency Planning and Works,Grants and contributions, The White Wave Clothing company LTD,40249582,22/12/2020,187114,2000,COVID 19 SMALL BUSINESS GRANT
Eden District Council,http://opendatacommunities.org/id/district-council/eden,Financial Services Manager,Emergency Planning and Works,Grants and contributions,Travelodge Hotels Limited,40170846,22/12/2020,187115,3000,COVID 19 SMALL BUSINESS GRANT
Eden District Council,http://opendatacommunities.org/id/district-council/eden,Financial Services Manager,Emergency Planning and Works,Grants and contributions,New Balance Athletic Shoes UK Ltd,40147877,22/12/2020,187116,1334,COVID 19 SMALL BUSINESS GRANT
Eden District Council,http://opendatacommunities.org/id/district-council/eden,Financial Services Manager,Emergency Planning and Works,Grants and contributions,Travelodge Hotels Limited,40153544,22/12/2020,187117,2000,COVID 19 SMALL BUSINESS GRANT
Eden District Council,http://opendatacommunities.org/id/district-council/eden,Financial Services Manager,Emergency Planning and Works,Grants and contributions,THE RATE PAYER,40158655,22/12/2020,187118,1334,COVID 19 SMALL BUSINESS GRANT
Eden District Council,http://opendatacommunities.org/id/district-council/eden,Financial Services Manager,Emergency Planning and Works,Grants and contributions,THE RATE PAYER,40250292,22/12/2020,187119,1334,COVID 19 SMALL BUSINESS GRANT
Eden District Council,http://opendatacommunities.org/id/district-council/eden,Financial Services Manager,Emergency Planning and Works,Grants and contributions,The lal nook,40247630,22/12/2020,187120,667,COVID 19 SMALL BUSINESS GRANT
Eden District Council,http://opendatacommunities.org/id/district-council/eden,Financial Services Manager,Emergency Planning and Works,Grants and contributions,THE DRUIDS ARMS,40211310,22/12/2020,187121,667,COVID 19 SMALL BUSINESS GRANT
Eden District Council,http://opendatacommunities.org/id/district-council/eden,Financial Services Manager,Emergency Planning and Works,Grants and contributions,The Midland Hotel,40189734,22/12/2020,187122,667,COVID 19 SMALL BUSINESS GRANT
Eden District Council,http://opendatacommunities.org/id/district-council/eden,Financial Services Manager,Emergency Planning and Works,Grants and contributions,Fell Bars Ltd,40242680,22/12/2020,187123,667,COVID 19 SMALL BUSINESS GRANT
Eden District Council,http://opendatacommunities.org/id/district-council/eden,Financial Services Manager,Emergency Planning and Works,Grants and contributions,THE RATE PAYER,40152800,22/12/2020,187124,667,COVID 19 SMALL BUSINESS GRANT
Eden District Council,http://opendatacommunities.org/id/district-council/eden,Financial Services Manager,Emergency Planning and Works,Grants and contributions,Grey Goat,40162661,22/12/2020,187125,1000,COVID 19 SMALL BUSINESS GRANT
Eden District Council,http://opendatacommunities.org/id/district-council/eden,Financial Services Manager,Emergency Planning and Works,Grants and contributions,The woolpack,40185923,22/12/2020,187126,1000,COVID 19 SMALL BUSINESS GRANT
Eden District Council,http://opendatacommunities.org/id/district-council/eden,Financial Services Manager,Emergency Planning and Works,Grants and contributions,Hawthorn Leisure Honey Ltd,40215893,22/12/2020,187127,1000,COVID 19 SMALL BUSINESS GRANT
Eden District Council,http://opendatacommunities.org/id/district-council/eden,Financial Services Manager,Emergency Planning and Works,Grants and contributions,Hare and Hounds (Appleby) Ltd,40193900,22/12/2020,187128,1000,COVID 19 SMALL BUSINESS GRANT
Eden District Council,http://opendatacommunities.org/id/district-council/eden,Financial Services Manager,Emergency Planning and Works,Grants and contributions,The Guys (penrith) ltd,40249414,22/12/2020,187129,1000,COVID 19 SMALL BUSINESS GRANT
Eden District Council,http://opendatacommunities.org/id/district-council/eden,Financial Services Manager,Corporate Costs,Bank charges,Barclays Merchant services,BMS001,10/12/2020,211624,1998.08,Merchant Services Charges
Eden District Council,http://opendatacommunities.org/id/district-council/eden,Financial Services Manager,Corporate Costs,Bank charges,Barclays Merchant services,BMS001,31/12/2020,211914,2460.17,Merchant Services Charges
